Workbook

Sheet FiscalYear Est Tons
A1: Facility ID | B1: Primary Name | C1: Non-EGU or EGU? | D1: PM ALW | E1: PM ACT | F1: SO2 ALW | G1: SO2 ACT | H1: VOC ALW | I1: VOC ACT | J1: NOX ALW | K1: NOX ACT | L1: HAP NOstd ALW | M1: HAP NOstd ACT | N1: HAP std ALW | O1: HAP std ACT | P1: NSPS ALW | Q1: NSPS ACT | R1: TOTAL ALW | S1: TOTAL ACT | T1: ALW $/ton | U1: ACT $/ton | V1: $/ton fee | W1: $/ton fee + base fee | X1: total fee | CU1: Count | CV1: Order | CW1: Facility ID | CX1: total fee
A2: 01-0009 | B2: Tennessee Valley Authority - Bull Run Fossil Plant | C2: EGU | E2: 116 | G2: 199 | I2: 20.2 | K2: 794 | M2: 6.8 | R2: 0 | S2: 1136 | T2: 46.90000153 | U2: 75.04000092 | V2: 85245.44104 | W2: 91245.44104 | X2: 91245.44104 | CU2: 1 | CV2: 1 | CW2: 81-0011 | CX2: 834265.8721 | CY2: Mean | CZ2: =AVERAGE(CX2:CX207) -> 40576.87652 | DA2: =AVERAGE(CX2:CX207) -> 40576.87652
A3: 01-0020 | B3: US Department of Energy - Oak Ridge Y-12 National Security Complex | C3: Non-EGU | D3: 168.57 | E3: 3.4 | F3: 0 | G3: 0.32 | H3: 59.23 | I3: 3.07 | J3: 165.48 | K3: 15.41 | L3: 48 | M3: 14.43 | N3: 2 | O3: 0.00265 | P3: 0 | Q3: 0 | R3: 443.28 | S3: 36.63265 | T3: 33.5 | U3: 53.59999847 | V3: 16813.38998 | W3: 22813.38998 | X3: 22813.38998 | CU3: 2 | CV3: 2 | CW3: 82-0003 | CX3: 710251.9062 | CY3: Median | CZ3: =MEDIAN(CX2:CX207) -> 17530.80531 | DA3: =MEDIAN(CX2:CX207) -> 17530.80531
A4: 01-0114 | B4: The Carlstar Group LLC | C4: Non-EGU | D4: 61.42 | G4: 0.075 | I4: 70.12 | K4: 14.48 | R4: 61.42 | S4: 84.675 | T4: 33.5 | U4: 53.59999847 | V4: 6596.149871 | W4: 12596.14987 | X4: 12596.14987 | CU4: 3 | CV4: 3 | CW4: 83-0025 | CX4: 390714.4375 | CY4: Mode | CZ4: =MODE(CX2:CX207) -> 9000 | DA4: =MODE(CX2:CX207) -> 9000
A5: 01-0170 | B5: Chestnut Ridge Landfill and Recycling Center | C5: Non-EGU | E5: 7.47 | G5: 13.13 | I5: 20.96 | K5: 69.09 | R5: 0 | S5: 110.65 | T5: 33.5 | U5: 53.59999847 | V5: 5930.839831 | W5: 11930.83983 | X5: 11930.83983 | CU5: 4 | CV5: 4 | CW5: 73-0013 | CX5: 313192.4368 | CY5: StdDev | CZ5: =STDEV(CX2:CX207) -> 89013.46859 | DA5: =STDEV(CX2:CX207) -> 89013.46859
A6: 03-0045 | B6: West Camden Sanitary Landfill | C6: Non-EGU | E6: 8.5 | G6: 29.87 | I6: 19.94 | K6: 48.18 | R6: 0 | S6: 106.49 | T6: 33.5 | U6: 53.59999847 | V6: 5707.863838 | W6: 11707.86384 | X6: 11707.86384 | CU6: 5 | CV6: 5 | CW6: 36-0002 | CX6: 261411.0634
A7: 05-0008 | B7: Arconic Inc. | C7: Non-EGU | E7: 110.69 | G7: 5.93 | I7: 204.4 | K7: 158.82 | M7: 6.637 | O7: 56.2147 | R7: 0 | S7: 542.6917 | T7: 33.5 | U7: 53.59999847 | V7: 29088.27429 | W7: 35088.27429 | X7: 35088.27429 | CU7: 6 | CV7: 6 | CW7: 54-0012 | CX7: 255487.2226
A8: 05-0011 | B8: Alcoa/Maryville/Blount County Landfill | C8: Non-EGU | E8: 18.38 | I8: 6.03 | K8: 1.14 | M8: 0.618 | R8: 0 | S8: 26.168 | T8: 33.5 | U8: 53.59999847 | V8: 1402.60476 | W8: 7402.60476 | X8: 9000 | CU8: 7 | CV8: 7 | CW8: 64-0013 | CX8: 221510.0862
A9: 05-0183 | B9: Denso Manufacturing Tennessee, Inc. | C9: Non-EGU | D9: 15.29 | F9: 0 | H9: 112 | J9: 0 | N9: 24.95 | P9: 0.2 | R9: 152.44 | S9: 0 | T9: 33.5 | U9: 53.59999847 | V9: 5106.74 | W9: 11106.74 | X9: 11106.74 | CU9: 8 | CV9: 8 | CW9: 37-0028 | CX9: 198430.4875
A10: 05-0199 | B10: Skier's Choice, Inc | C10: Non-EGU | D10: 45.2 | F10: 0 | H10: 245 | J10: 0 | N10: 0 | P10: 0 | R10: 290.2 | S10: 0 | T10: 33.5 | U10: 53.59999847 | V10: 9721.7 | W10: 15721.7 | X10: 15721.7 | CU10: 9 | CV10: 9 | CW10: 37-0026 | CX10: 176813.1501
A11: 06-0014 | B11: Olin Corporation | C11: Non-EGU | D11: 12.9 | F11: 33.5 | H11: 6.75 | J11: 163.2 | N11: 3.6 | P11: 4.3 | R11: 224.25 | S11: 0 | T11: 33.5 | U11: 53.59999847 | V11: 7512.375 | W11: 13512.375 | X11: 13512.375 | CU11: 10 | CV11: 10 | CW11: 43-0007 | CX11: 169152.1269
A12: 06-0085 | B12: Duracell Manufacturing, Inc. | C12: Non-EGU | D12: 65.6 | F12: 0 | H12: 77.4 | J12: 0 | N12: 0 | P12: 0 | R12: 143 | S12: 0 | T12: 33.5 | U12: 53.59999847 | V12: 4790.5 | W12: 10790.5 | X12: 10790.5 | CU12: 11 | CV12: 11 | CW12: 75-0155 | CX12: 148363.3201
A13: 06-0205 | B13: Bradley County Landfill (Bradley County Government) | C13: Non-EGU | I13: 15.85 | Q13: 9.37 | R13: 0 | S13: 25.22 | T13: 33.5 | U13: 53.59999847 | V13: 1351.791962 | W13: 7351.791962 | X13: 9000 | CU13: 12 | CV13: 12 | CW13: 09-0012 | CX13: 136501.5907
A14: 06-0215 | B14: Innovative Water Care, LLC | C14: Non-EGU | D14: 234.8 | F14: 0.2 | H14: 1.5 | J14: 39.5 | N14: 40 | P14: 0 | R14: 316 | S14: 0 | T14: 33.5 | U14: 53.59999847 | V14: 10586 | W14: 16586 | X14: 16586 | CU14: 13 | CV14: 13 | CW14: 41-0002 | CX14: 134423.2924
A15: 09-0012 | B15: GrÃ¤nges Americas Inc. | C15: Non-EGU | D15: 102.8 | F15: 254.7 | H15: 2002.61 | J15: 224.5 | N15: 24.9 | P15: 0 | R15: 2609.51 | S15: 0 | T15: 33.5 | U15: 53.59999847 | V15: 87418.585 | W15: 93418.585 | X15: 93418.585 | CU15: 14 | CV15: 14 | CW15: 01-0009 | CX15: 133254.7162
A16: 11-0023 | B16: State Industries Incorporated | C16: Non-EGU | D16: 133.4 | E16: 1 | F16: 25.8 | H16: 4.1 | I16: 253 | J16: 77.9 | R16: 241.2 | S16: 254 | T16: 33.5 | U16: 53.59999847 | V16: 21694.59961 | W16: 27694.59961 | X16: 27694.59961 | CU16: 15 | CV16: 15 | CW16: 43-0010 | CX16: 124707.7328
A17: 11-0039 | B17: Arcosa Marine Products, Inc. [Plant No. 296] | C17: Non-EGU | D17: 28.6 | F17: 0 | H17: 221 | J17: 0 | N17: 0 | P17: 0 | R17: 249.6 | S17: 0 | T17: 33.5 | U17: 53.59999847 | V17: 8361.6 | W17: 14361.6 | X17: 14361.6 | CU17: 16 | CV17: 16 | CW17: 83-0008 | CX17: 102510.2775
A18: 13-0083 | B18: SumiRiko Tennessee, Inc. - Tazewell | C18: Non-EGU | E18: 12.04 | I18: 220.78 | R18: 0 | S18: 232.82 | T18: 33.5 | U18: 53.59999847 | V18: 12479.15164 | W18: 18479.15164 | X18: 18479.15164 | CU18: 17 | CV18: 17 | CW18: 64-0001 | CX18: 88568.2867
A19: 14-0022 | B19: Honest Abe Log Homes, Inc. | C19: Non-EGU | D19: 273.47 | F19: 22.95 | H19: 2.15 | J19: 28.03 | N19: 0 | P19: 0 | R19: 326.6 | S19: 0 | T19: 33.5 | U19: 53.59999847 | V19: 10941.1 | W19: 16941.1 | X19: 16941.1 | CU19: 18 | CV19: 18 | CW19: 53-0081 | CX19: 84565.70736
A20: 15-0005 | B20: SI Group, Inc. | C20: Non-EGU | D20: 11.92 | F20: 28.23 | H20: 35.03 | J20: 61.23 | N20: 0 | P20: 0 | R20: 136.41 | S20: 0 | T20: 33.5 | U20: 53.59999847 | V20: 4569.735 | W20: 10569.735 | X20: 10569.735 | CU20: 19 | CV20: 19 | CW20: 53-0003 | CX20: 84365.16727
A21: 15-0009 | B21: Commercial Furniture Group | C21: Non-EGU | D21: 100.73 | F21: 0 | H21: 107 | J21: 0 | N21: 0 | P21: 0 | R21: 207.73 | S21: 0 | T21: 33.5 | U21: 53.59999847 | V21: 6958.955 | W21: 12958.955 | X21: 12958.955 | CU21: 20 | CV21: 20 | CW21: 82-0022 | CX21: 76721.34554
A22: 15-0020 | B22: Sonoco Products Company | C22: Non-EGU | E22: 2.02 | G22: 0.16 | I22: 2.689 | K22: 26.6 | O22: 2.43 | R22: 0 | S22: 33.899 | T22: 33.5 | U22: 53.59999847 | V22: 1816.986348 | W22: 7816.986348 | X22: 9000 | CU22: 21 | CV22: 21 | CW22: 87-0028 | CX22: 72948.38475
A23: 16-0010 | B23: Arnold Engineering Development Complex | C23: Non-EGU | E23: 4.627 | G23: 2.729 | I23: 12.043 | K23: 59.154 | R23: 0 | S23: 78.553 | T23: 33.5 | U23: 53.59999847 | V23: 4210.44068 | W23: 10210.44068 | X23: 10210.44068 | CU23: 22 | CV23: 22 | CW23: 60-0011 | CX23: 56135.02332
A24: 16-0067 | B24: Batesville Manufacturing, Inc. | C24: Non-EGU | E24: 9.493 | I24: 196.64 | M24: 31.34 | R24: 0 | S24: 237.473 | T24: 33.5 | U24: 53.59999847 | V24: 12728.55244 | W24: 18728.55244 | X24: 18728.55244 | CU24: 23 | CV24: 23 | CW24: 54-0174 | CX24: 54226.64178
A25: 16-0113 | B25: Kasai North America, Inc. | C25: Non-EGU | D25: 41 | F25: 0 | H25: 225 | J25: 6 | N25: 0 | P25: 0 | R25: 272 | S25: 0 | T25: 33.5 | U25: 53.59999847 | V25: 9112 | W25: 15112 | X25: 15112 | CU25: 24 | CV25: 24 | CW25: 05-0008 | CX25: 49426.18801
A26: 16-0123 | B26: Sonoco Protective Solutions, Inc. | C26: Non-EGU | E26: 0.69 | G26: 0.05 | I26: 56.2 | K26: 9.11 | R26: 0 | S26: 66.05 | T26: 33.5 | U26: 53.59999847 | V26: 3540.279899 | W26: 9540.279899 | X26: 9540.279899 | CU26: 25 | CV26: 25 | CW26: 18-0120 | CX26: 49204.13765
A27: 18-0090 | B27: Crossville Hardwoods, LLC | C27: Non-EGU | E27: 102.388 | G27: 1.456 | I27: 6.632 | K27: 28.549 | R27: 0 | S27: 139.025 | T27: 33.5 | U27: 53.59999847 | V27: 7451.739788 | W27: 13451.73979 | X27: 13451.73979 | CU27: 26 | CV27: 26 | CW27: 38-0069 | CX27: 48769.23472
A28: 18-0120 | B28: StonePeak Ceramics, Inc. | C28: Non-EGU | D28: 313.67 | F28: 196.97 | H28: 79.38 | J28: 255.13 | N28: 18.76 | P28: 0 | R28: 863.91 | S28: 0 | T28: 33.5 | U28: 53.59999847 | V28: 28940.985 | W28: 34940.985 | X28: 34940.985 | CU28: 27 | CV28: 27 | CW28: 50-0003 | CX28: 46558.10864
A29: 20-0052 | B29: Decatur County Municipal Solid Waste Landfill | C29: Non-EGU | I29: 16.3 | R29: 0 | S29: 16.3 | T29: 33.5 | U29: 53.59999847 | V29: 873.6799751 | W29: 6873.679975 | X29: 9000 | CU29: 28 | CV29: 28 | CW29: 63-0320 | CX29: 46490.09504
A30: 21-0031 | B30: Federal-Mogul Motorparts | C30: Non-EGU | E30: 1.68 | G30: 1.93 | I30: 53.14 | K30: 13.04 | O30: 5.34 | R30: 0 | S30: 75.13 | T30: 33.5 | U30: 53.59999847 | V30: 4026.967885 | W30: 10026.96789 | X30: 10026.96789 | CU30: 29 | CV30: 29 | CW30: 60-0132 | CX30: 45717.12513
A31: 22-0055 | B31: Ebbtide Holdings, LLC | C31: Non-EGU | R31: 0 | S31: 0 | T31: 33.5 | U31: 53.59999847 | V31: 0 | W31: 6000 | X31: 9000 | CU31: 30 | CV31: 30 | CW31: 53-0093 | CX31: 45633.49424
A32: 22-0072 | B32: Nemak USA, Inc. | C32: Non-EGU | E32: 97.19 | G32: 0.2 | I32: 117.12 | K32: 30.42 | M32: 0.08 | O32: 0.22 | R32: 0 | S32: 245.23 | T32: 33.5 | U32: 53.59999847 | V32: 13144.32763 | W32: 19144.32763 | X32: 19144.32763 | CU32: 31 | CV32: 31 | CW32: 62-0096 | CX32: 44097.5204
A33: 22-0112 | B33: Bridgestone APM | C33: Non-EGU | E33: 0.679 | G33: 0.001 | I33: 134.79 | K33: 0.1 | M33: 2.46 | R33: 0 | S33: 138.03 | T33: 33.5 | U33: 53.59999847 | V33: 7398.407789 | W33: 13398.40779 | X33: 13398.40779 | CU33: 32 | CV33: 32 | CW33: 37-0007 | CX33: 41835.19693
A34: 22-0177 | B34: Dal-Tile Tennessee LLC dba Dal-Tile Dickson | C34: Non-EGU | E34: 63.5 | G34: 1.2 | I34: 38.4 | K34: 47.1 | M34: 1.6 | P34: 0 | R34: 0 | S34: 151.8 | T34: 33.5 | U34: 53.59999847 | V34: 8136.479768 | W34: 14136.47977 | X34: 14136.47977 | CU34: 33 | CV34: 33 | CW34: 57-0024 | CX34: 41578.14402
A35: 23-0092 | B35: Trunkline Gas Company- Dyersburg Compressor Station | C35: Non-EGU | E35: 0.23 | G35: 1.65 | I35: 1.05 | K35: 33.73 | M35: 0.04 | R35: 0 | S35: 36.7 | T35: 33.5 | U35: 53.59999847 | V35: 1967.119944 | W35: 7967.119944 | X35: 9000 | CU35: 34 | CV35: 34 | CW35: 72-0107 | CX35: 39845.26656
A36: 23-0120 | B36: SRG Global Coatings, Inc. - Newbern | C36: Non-EGU | D36: 103.5 | F36: 0.44 | H36: 230.2 | J36: 4.4 | N36: 24.9 | P36: 0 | R36: 363.44 | S36: 0 | T36: 33.5 | U36: 53.59999847 | V36: 12175.24 | W36: 18175.24 | X36: 18175.24 | CU36: 35 | CV36: 35 | CW36: 11-0023 | CX36: 38387.49074
A37: 23-0182 | B37: Frazier Industrial Company - Dyersburg Facility | C37: Non-EGU | D37: 13.47 | F37: 0.01 | H37: 244 | J37: 0.86 | N37: 0 | P37: 0 | R37: 258.34 | S37: 0 | T37: 33.5 | U37: 53.59999847 | V37: 8654.39 | W37: 14654.39 | X37: 14654.39 | CU37: 36 | CV37: 36 | CW37: 91-0001 | CX37: 38386.09314
A38: 24-0080 | B38: Stabilit America, Inc. | C38: Non-EGU | D38: 11.8 | F38: 0 | H38: 50.3 | J38: 9.4 | N38: 0 | P38: 0 | R38: 71.5 | S38: 0 | T38: 33.5 | U38: 53.59999847 | V38: 2395.25 | W38: 8395.25 | X38: 9000 | CU38: 37 | CV38: 37 | CW38: 43-0011 | CX38: 38374.7424
A39: 26-0079 | B39: Tepro Inc. | C39: Non-EGU | D39: 17.52 | F39: 0 | H39: 130 | J39: 0 | N39: 0 | P39: 0 | R39: 147.52 | S39: 0 | T39: 33.5 | U39: 53.59999847 | V39: 4941.92 | W39: 10941.92 | X39: 10941.92 | CU39: 38 | CV39: 38 | CW39: 75-0057 | CX39: 38093.91642
A40: 26-0086 | B40: Tennessee Zanini, Inc. | C40: Non-EGU | E40: 5.4 | I40: 109.1 | M40: 17 | R40: 0 | S40: 131.5 | T40: 33.5 | U40: 53.59999847 | V40: 7048.399799 | W40: 13048.3998 | X40: 13048.3998 | CU40: 39 | CV40: 39 | CW40: 63-0092 | CX40: 37468.66388
A41: 26-0131 | B41: CJBBB, Inc. dba Phoenix Boats | C41: Non-EGU | E41: 0.48 | I41: 55.65 | R41: 0 | S41: 56.13 | T41: 33.5 | U41: 53.59999847 | V41: 3008.567914 | W41: 9008.567914 | X41: 9008.567914 | CU41: 40 | CV41: 40 | CW41: 73-0107 | CX41: 37319.76165
A42: 27-0100 | B42: Ceco Door Products | C42: Non-EGU | D42: 93.8 | F42: 0.12 | H42: 230.5 | J42: 19.84 | N42: 0 | P42: 0 | R42: 344.26 | S42: 0 | T42: 33.5 | U42: 53.59999847 | V42: 11532.71 | W42: 17532.71 | X42: 17532.71 | CU42: 41 | CV42: 41 | CW42: 60-0095 | CX42: 36561.23712
A43: 28-0025 | B43: Magotteaux Incorporated | C43: Non-EGU | D43: 195.8 | F43: 58.5 | H43: 118.2 | J43: 22.4 | N43: 0 | P43: 0 | R43: 394.9 | S43: 0 | T43: 33.5 | U43: 53.59999847 | V43: 13229.15 | W43: 19229.15 | X43: 19229.15 | CU43: 42 | CV43: 42 | CW43: 89-0077 | CX43: 36378.18496
A44: 28-0076 | B44: Adient US LLC | C44: Non-EGU | D44: 113.9 | F44: 0 | H44: 285.9 | J44: 0 | N44: 0 | P44: 0 | R44: 399.8 | S44: 0 | T44: 33.5 | U44: 53.59999847 | V44: 13393.3 | W44: 19393.3 | X44: 19393.3 | CU44: 43 | CV44: 43 | CW44: 35-0006 | CX44: 35559.91489
A45: 28-0091 | B45: SaarGummi Tennessee, LLC | C45: Non-EGU | D45: 22.2 | F45: 0 | H45: 91.5 | J45: 0 | N45: 0 | P45: 0 | R45: 113.7 | S45: 0 | T45: 33.5 | U45: 53.59999847 | V45: 3808.95 | W45: 9808.95 | X45: 9808.95 | CU45: 44 | CV45: 44 | CW45: 83-0129 | CX45: 35515.90101
A46: 30-0001 | B46: Imerys Fused Minerals Greeneville, Inc. | C46: Non-EGU | D46: 244.65 | F46: 0.15 | H46: 1.23 | J46: 41.4 | N46: 0 | P46: 0 | R46: 287.43 | S46: 0 | T46: 33.5 | U46: 53.59999847 | V46: 9628.905 | W46: 15628.905 | X46: 15628.905 | CU46: 45 | CV46: 45 | CW46: 57-0189 | CX46: 34499.82002
A47: 30-0132 | B47: Plus Mark, Inc. | C47: Non-EGU | E47: 0.187 | G47: 0.017 | I47: 185.489 | K47: 1.521 | R47: 0 | S47: 187.214 | T47: 33.5 | U47: 53.59999847 | V47: 10034.67011 | W47: 16034.67011 | X47: 16034.67011 | CU47: 46 | CV47: 46 | CW47: 57-0035 | CX47: 34475.19294
A48: 30-0136 | B48: Donaldson Company, Inc. | C48: Non-EGU | D48: 18.6 | F48: 0 | H48: 70.5 | J48: 0 | N48: 29.6 | P48: 0 | R48: 118.7 | S48: 0 | T48: 33.5 | U48: 53.59999847 | V48: 3976.45 | W48: 9976.45 | X48: 9976.45 | CU48: 47 | CV48: 47 | CW48: 54-0167 | CX48: 34083.61466
A49: 30-0165 | B49: Delfasco, LLC | C49: Non-EGU | D49: 19.7 | F49: 0 | H49: 99.9 | J49: 0 | N49: 0 | P49: 0 | R49: 119.6 | S49: 0 | T49: 33.5 | U49: 53.59999847 | V49: 4006.6 | W49: 10006.6 | X49: 10006.6 | CU49: 48 | CV49: 48 | CW49: 63-0135 | CX49: 33698.53767
A50: 30-0166 | B50: SumiRiko Tennessee, Inc. | C50: Non-EGU | E50: 39.12 | G50: 0.0214 | I50: 106.72 | K50: 3.04 | R50: 0 | S50: 148.9014 | T50: 33.5 | U50: 53.59999847 | V50: 7981.114813 | W50: 13981.11481 | X50: 13981.11481 | CU50: 49 | CV50: 49 | CW50: 92-0108 | CX50: 33176.05119
A51: 30-0190 | B51: Sea Ray Boats | C51: Non-EGU | D51: 48.4 | F51: 0 | H51: 129 | J51: 0 | N51: 0 | P51: 0 | R51: 177.4 | S51: 0 | T51: 33.5 | U51: 53.59999847 | V51: 5942.9 | W51: 11942.9 | X51: 11942.9 | CU51: 50 | CV51: 50 | CW51: 54-0009 | CX51: 33127.35643
A52: 32-0196 | B52: Sonoco Flexible Packaging, Inc. | C52: Non-EGU | I52: 33.649 | R52: 0 | S52: 33.649 | T52: 33.5 | U52: 53.59999847 | V52: 1803.586349 | W52: 7803.586349 | X52: 9000 | CU52: 51 | CV52: 51 | CW52: 62-0090 | CX52: 31435.08515
A53: 32-0275 | B53: Trelleborg Coated Systems US, Inc. dba Morristown Facility | C53: Non-EGU | E53: 1.47 | G53: 0.1 | I53: 14.4 | K53: 1.86 | R53: 0 | S53: 17.83 | T53: 33.5 | U53: 53.59999847 | V53: 955.6879728 | W53: 6955.687973 | X53: 9000 | CU53: 52 | CV53: 52 | CW53: 01-0020 | CX53: 31099.77659
A54: 34-0014 | B54: Powell Valley Electric Cooperative, Inc. | C54: Non-EGU | E54: 0.069 | G54: 0.14 | I54: 0.1217 | K54: 8.504 | R54: 0 | S54: 8.8347 | T54: 33.5 | U54: 53.59999847 | V54: 473.5399065 | W54: 6473.539907 | X54: 9000 | CU54: 53 | CV54: 53 | CW54: 95-0093 | CX54: 31057.00956
A55: 35-0001 | B55: Kilgore Flares Company, LLC | C55: Non-EGU | D55: 55.2 | F55: 0.1 | H55: 82.2 | J55: 2 | N55: 0.7 | P55: 0 | R55: 140.2 | S55: 0 | T55: 33.5 | U55: 53.59999847 | V55: 4696.7 | W55: 10696.7 | X55: 10696.7 | CU55: 54 | CV55: 54 | CW55: 36-0074 | CX55: 30939.98616
A56: 35-0004 | B56: Thyssen Elevator Systems, Inc. | C56: Non-EGU | D56: 84.5 | F56: 0 | H56: 398.2 | J56: 1.64 | N56: 0 | P56: 0 | R56: 484.34 | S56: 0 | T56: 33.5 | U56: 53.59999847 | V56: 16225.39 | W56: 22225.39 | X56: 22225.39 | CU56: 55 | CV56: 55 | CW56: 35-0004 | CX56: 30221.84259
A57: 35-0006 | B57: Tennessee Gas Pipeline Company, LLC - Compressor Station 71 | C57: Non-EGU | E57: 4.3 | G57: 0.06 | I57: 10.54 | K57: 354.49 | M57: 0.0166 | R57: 0 | S57: 369.4066 | T57: 33.5 | U57: 53.59999847 | V57: 19800.1932 | W57: 25800.1932 | X57: 25800.1932 | CU57: 56 | CV57: 56 | CW57: 40-0024 | CX57: 29063.36343
A58: 36-0002 | B58: Packaging Corporation of America | C58: Non-EGU | D58: 463.8 | F58: 1800 | H58: 794.1 | J58: 1665.5 | N58: 184.6 | P58: 199.2 | R58: 5107.2 | S58: 0 | T58: 33.5 | U58: 53.59999847 | V58: 171091.2 | W58: 177091.2 | X58: 177091.2 | CU58: 57 | CV58: 57 | CW58: 43-0021 | CX58: 27390.27648
A59: 36-0061 | B59: Tennessee Gas Pipeline Company, LLC - Compressor Station 856 | C59: Non-EGU | E59: 0 | G59: 0 | I59: 0 | K59: 0 | R59: 0 | S59: 0 | T59: 33.5 | U59: 53.59999847 | V59: 0 | W59: 6000 | X59: 9000 | CU59: 58 | CV59: 58 | CW59: 62-0089 | CX59: 27133.28111
A60: 36-0074 | B60: The Praxis Companies, LLC dba American Whirlpool | C60: Non-EGU | D60: 12.7 | F60: 0 | H60: 486 | J60: 0 | N60: 0 | P60: 0 | R60: 498.7 | S60: 0 | T60: 33.5 | U60: 53.59999847 | V60: 16706.45 | W60: 22706.45 | X60: 22706.45 | CU60: 59 | CV60: 59 | CW60: 72-0049 | CX60: 27069.24449
A61: 37-0001 | B61: Holliston Holdings, LLC | C61: Non-EGU | E61: 0.843 | G61: 0.081 | I61: 27.833 | K61: 18.46 | M61: 88.129 | R61: 0 | S61: 135.346 | T61: 33.5 | U61: 53.59999847 | V61: 7254.545393 | W61: 13254.54539 | X61: 13254.54539 | CU61: 60 | CV61: 60 | CW61: 66-0123 | CX61: 27062.21089
A62: 37-0007 | B62: Tennessee Valley Authority - John Sevier Combined Cycle Plant | C62: EGU | E62: 80 | G62: 11 | I62: 52.9 | K62: 176 | R62: 0 | S62: 319.9 | T62: 46.90000153 | U62: 75.04000092 | V62: 24005.29629 | W62: 30005.29629 | X62: 30005.29629 | CU62: 61 | CV62: 61 | CW62: 63-0123 | CX62: 26902.1789
A63: 37-0026 | B63: AGC Flat Glass North America, Inc. - Greenland Plant | C63: Non-EGU | D63: 213.59 | F63: 582.26 | H63: 117.72 | J63: 2477.26 | N63: 24.75 | P63: 0 | R63: 3415.58 | S63: 0 | T63: 33.5 | U63: 53.59999847 | V63: 114421.93 | W63: 120421.93 | X63: 120421.93 | CU63: 62 | CV63: 62 | CW63: 81-0030 | CX63: 26731.1447
A64: 37-0028 | B64: BAE SYSTEMS Ordnance Systems Inc. Holston Army Ammunition Plant | C64: Non-EGU | E64: 49.68 | G64: 1767.63 | I64: 223.18 | K64: 356.85 | O64: 7.44 | R64: 0 | S64: 2404.78 | T64: 33.5 | U64: 53.59999847 | V64: 128896.2043 | W64: 134896.2043 | X64: 134896.2043 | CU64: 63 | CV64: 63 | CW64: 38-0068 | CX64: 26714.67643
A65: 37-0067 | B65: Hutchinson Body Sealing System | C65: Non-EGU | D65: 41 | E65: 0.054 | F65: 0 | G65: 0 | H65: 217 | I65: 42.3 | J65: 0 | K65: 0 | N65: 24.9 | O65: 16.5 | P65: 0 | R65: 282.9 | S65: 58.854 | T65: 33.5 | U65: 53.59999847 | V65: 12631.72431 | W65: 18631.72431 | X65: 18631.72431 | CU65: 64 | CV65: 64 | CW65: 54-0132 | CX65: 26467.09191
A66: 37-0076 | B66: Mundet Tennessee Incorporated | C66: Non-EGU | D66: 15.6 | F66: 1 | H66: 199 | J66: 7 | N66: 0 | P66: 0 | R66: 222.6 | S66: 0 | T66: 33.5 | U66: 53.59999847 | V66: 7457.1 | W66: 13457.1 | X66: 13457.1 | CU66: 65 | CV66: 65 | CW66: 28-0076 | CX66: 25993.99733
A67: 37-0080 | B67: BFI Waste Systems of Tennessee dba Carter Valley Landfill | C67: Non-EGU | E67: 14.62 | G67: 0.04 | I67: 6.62 | K67: 0.66 | Q67: 21.4 | R67: 0 | S67: 43.34 | T67: 33.5 | U67: 53.59999847 | V67: 2323.023934 | W67: 8323.023934 | X67: 9000 | CU67: 66 | CV67: 66 | CW67: 28-0025 | CX67: 25748.94834
A68: 38-0039 | B68: Teknor Apex Tennessee Company | C68: Non-EGU | D68: 72.01 | E68: 4.76 | G68: 0.18 | H68: 216.3 | I68: 38.69 | K68: 15.33 | R68: 288.31 | S68: 58.96 | T68: 33.5 | U68: 53.59999847 | V68: 12818.64091 | W68: 18818.64091 | X68: 18818.64091 | CU68: 67 | CV68: 67 | CW68: 22-0072 | CX68: 25623.30378
A69: 38-0053 | B69: ANR Pipeline Company dba Brownsville Compressor Station | C69: Non-EGU | E69: 5.09 | G69: 0.3 | I69: 8.3 | K69: 110.8 | M69: 0.01 | R69: 0 | S69: 124.5 | T69: 33.5 | U69: 53.59999847 | V69: 6673.19981 | W69: 12673.19981 | X69: 12673.19981 | CU69: 68 | CV69: 68 | CW69: 38-0039 | CX69: 25136.36162
A70: 38-0068 | B70: Tennessee Valley Authority - Brownsville Combustion Turbine Plant | C70: EGU | E70: 10.9 | G70: 2.1 | I70: 16.3 | J70: 249 | R70: 249 | S70: 29.3 | T70: 46.90000153 | U70: 75.04000092 | V70: 13876.77241 | W70: 19876.77241 | X70: 19876.77241 | CU70: 69 | CV70: 69 | CW70: 16-0067 | CX70: 25002.58866
A71: 38-0069 | B71: Tennessee Valley Authority (TVA) - Lagoon Creek Combustion Turbine Plant (LCT) | C71: EGU | E71: 58.1 | G71: 9.2 | I71: 31.6 | K71: 282.9 | R71: 0 | S71: 381.8 | T71: 46.90000153 | U71: 75.04000092 | V71: 28650.27235 | W71: 34650.27235 | X71: 34650.27235 | CU71: 70 | CV71: 70 | CW71: 37-0067 | CX71: 24857.32541
A72: 39-0072 | B72: Leroy-Somer Americas | C72: Non-EGU | D72: 80.8 | F72: 13.1 | H72: 155 | J72: 63.5 | N72: 0 | P72: 0 | R72: 312.4 | S72: 0 | T72: 33.5 | U72: 53.59999847 | V72: 10465.4 | W72: 16465.4 | X72: 16465.4 | CU72: 71 | CV72: 71 | CW72: 53-0098 | CX72: 24734.50924
A73: 40-0024 | B73: ANR Pipeline Company dba Cottage Grove Compressor Station | C73: Non-EGU | E73: 9.75 | G73: 0.08 | I73: 24.21 | K73: 254.14 | M73: 0.04 | R73: 0 | S73: 288.22 | T73: 33.5 | U73: 53.59999847 | V73: 15448.59156 | W73: 21448.59156 | X73: 21448.59156 | CU73: 72 | CV73: 72 | CW73: 13-0083 | CX73: 24630.25562
A74: 40-0033 | B74: Institutional Casework, Inc. | C74: Non-EGU | D74: 27.61 | F74: 0 | H74: 128.1 | J74: 0 | N74: 0 | P74: 0 | R74: 155.71 | S74: 0 | T74: 33.5 | U74: 53.59999847 | V74: 5216.285 | W74: 11216.285 | X74: 11216.285 | CU74: 73 | CV74: 73 | CW74: 23-0120 | CX74: 24175.63379
A75: 40-0077 | B75: Tank Lining Of Paris, Inc. | C75: Non-EGU | D75: 34.6 | F75: 0 | H75: 189.6 | J75: 2.63 | N75: 0 | P75: 0 | R75: 226.83 | S75: 0 | T75: 33.5 | U75: 53.59999847 | V75: 7598.805 | W75: 13598.805 | X75: 13598.805 | CU75: 74 | CV75: 74 | CW75: 58-0011 | CX75: 23962.5912
A76: 40-0083 | B76: Allegion, PLC, c/o Schlage Lock Company, LLC dba Republic Doors and Frames | C76: Non-EGU | D76: 27.41 | F76: 0 | H76: 203.1 | J76: 0 | N76: 0 | P76: 0 | R76: 230.51 | S76: 0 | T76: 33.5 | U76: 53.59999847 | V76: 7722.085 | W76: 13722.085 | X76: 13722.085 | CU76: 75 | CV76: 75 | CW76: 27-0100 | CX76: 23216.44202
A77: 40-0102 | B77: PML Inc. | C77: Non-EGU | D77: 8.12 | E77: 0.04 | G77: 0.003 | I77: 16.56 | K77: 0.5 | R77: 8.12 | S77: 17.103 | T77: 33.5 | U77: 53.59999847 | V77: 1188.740774 | W77: 7188.740774 | X77: 9000 | CU77: 76 | CV77: 76 | CW77: 67-0054 | CX77: 23017.90233
A78: 40-0107 | B78: Dana Sealing Products, LLC | C78: Non-EGU | E78: 0.002 | G78: 0.002 | I78: 28 | K78: 0.03 | M78: 1.1 | R78: 0 | S78: 29.134 | T78: 33.5 | U78: 53.59999847 | V78: 1561.582356 | W78: 7561.582356 | X78: 9000 | CU78: 77 | CV78: 77 | CW78: 62-0107 | CX78: 22948.23529
A79: 41-0002 | B79: Tennessee Gas Pipeline Company, LLC - Compressor Station 860 | C79: Non-EGU | E79: 27.83 | G79: 0.33 | I79: 69.12 | K79: 1507.5 | M79: 0.11 | R79: 0 | S79: 1604.89 | T79: 33.5 | U79: 53.59999847 | V79: 86022.10155 | W79: 92022.10155 | X79: 92022.10155 | CU79: 78 | CV79: 78 | CW79: 83-0014 | CX79: 22496.29491
A80: 43-0003 | B80: Albemarle U S Inc | C80: Non-EGU | D80: 8.51 | F80: 0.01 | H80: 98.6 | J80: 3.53 | N80: 0 | P80: 0 | R80: 110.65 | S80: 0 | T80: 33.5 | U80: 53.59999847 | V80: 3706.775 | W80: 9706.775 | X80: 9706.775 | CU80: 79 | CV80: 79 | CW80: 14-0022 | CX80: 22333.26545
A81: 43-0007 | B81: The Chemours Company FC, LLC | C81: Non-EGU | D81: 440.9 | E81: 7.34 | F81: 39.06 | G81: 30.17 | H81: 4.23 | I81: 74.43 | J81: 4.49 | K81: 72.66 | L81: 49.19 | M81: 1518.14 | R81: 537.87 | S81: 1702.74 | T81: 33.5 | U81: 53.59999847 | V81: 109285.5064 | W81: 115285.5064 | X81: 115285.5064 | CU81: 80 | CV81: 80 | CW81: 06-0215 | CX81: 21803.15947
A82: 43-0010 | B82: Hood Container Corporation | C82: Non-EGU | D82: 379.73 | F82: 576.4 | H82: 501.35 | J82: 863.9 | N82: 50.8 | P82: 1.5 | R82: 2373.68 | S82: 0 | T82: 33.5 | U82: 53.59999847 | V82: 79518.28 | W82: 85518.28 | X82: 85518.28 | CU82: 81 | CV82: 81 | CW82: 39-0072 | CX82: 21623.12348
A83: 43-0011 | B83: Tennessee Valley Authority - Johnsonville Combustion Turbine Plant | C83: EGU | E83: 21 | G83: 3 | I83: 20 | K83: 245 | M83: 0.0086 | R83: 0 | S83: 289.0086 | T83: 46.90000153 | U83: 75.04000092 | V83: 21687.20561 | W83: 27687.20561 | X83: 27687.20561 | CU83: 82 | CV83: 82 | CW83: 63-0339 | CX83: 21525.10388
A84: 43-0021 | B84: Prince Specialty Products LLC | C84: Non-EGU | D84: 69.22 | F84: 160.27 | H84: 5.82 | J84: 192.41 | N84: 0 | P84: 0 | R84: 427.72 | S84: 0 | T84: 33.5 | U84: 53.59999847 | V84: 14328.62 | W84: 20328.62 | X84: 20328.62 | CU84: 83 | CV84: 83 | CW84: 60-0200 | CX84: 21353.06948
A85: 45-0085 | B85: Ball Metalpack, LLC | C85: Non-EGU | D85: 9.95 | F85: 0.13 | H85: 249 | J85: 18.69 | N85: 0 | P85: 0 | R85: 277.77 | S85: 0 | T85: 33.5 | U85: 53.59999847 | V85: 9305.295 | W85: 15305.295 | X85: 15305.295 | CU85: 84 | CV85: 84 | CW85: 52-0002 | CX85: 20987.9965
A86: 45-0101 | B86: Overman USA | C86: Non-EGU | D86: 44 | F86: 0 | H86: 233 | J86: 0 | N86: 0 | P86: 0 | R86: 277 | S86: 0 | T86: 33.5 | U86: 53.59999847 | V86: 9279.5 | W86: 15279.5 | X86: 15279.5 | CU86: 85 | CV86: 85 | CW86: 30-0132 | CX86: 20980.86365
A87: 47-0018 | B87: University of Tennessee | C87: Non-EGU | E87: 5.21 | G87: 1.27 | I87: 9.67 | K87: 75.06 | R87: 0 | S87: 91.21 | T87: 33.5 | U87: 53.59999847 | V87: 4888.855861 | W87: 10888.85586 | X87: 10888.85586 | CU87: 86 | CV87: 86 | CW87: 05-0199 | CX87: 20512.90151
A88: 49-0068 | B88: Marvin Windows of Tennessee, Inc. | C88: Non-EGU | D88: 77.46 | F88: 0 | H88: 194.47 | J88: 0 | N88: 0 | P88: 0 | R88: 271.93 | S88: 0 | T88: 33.5 | U88: 53.59999847 | V88: 9109.655 | W88: 15109.655 | X88: 15109.655 | CU88: 87 | CV88: 87 | CW88: 73-0125 | CX88: 20478.89471
A89: 50-0003 | B89: GT Refractory Solutions LLC | C89: Non-EGU | D89: 215 | F89: 522 | H89: 47 | J89: 27 | N89: 0 | P89: 0 | R89: 811 | S89: 0 | T89: 33.5 | U89: 53.59999847 | V89: 27168.5 | W89: 33168.5 | X89: 33168.5 | CU89: 88 | CV89: 88 | CW89: 53-0090 | CX89: 20416.88232
A90: 50-0054 | B90: Graphic Packaging International, LLC | C90: Non-EGU | D90: 104.44 | I90: 21.73 | R90: 104.44 | S90: 21.73 | T90: 33.5 | U90: 53.59999847 | V90: 4663.467967 | W90: 10663.46797 | X90: 10663.46797 | CU90: 89 | CV90: 89 | CW90: 30-0001 | CX90: 20374.37382
A91: 51-0031 | B91: Oliver Fiberglass Products | C91: Non-EGU | E91: 6 | I91: 43.13 | R91: 0 | S91: 49.13 | T91: 33.5 | U91: 53.59999847 | V91: 2633.367925 | W91: 8633.367925 | X91: 9000 | CU91: 90 | CV91: 90 | CW91: 57-0254 | CX91: 19913.87702
A92: 52-0002 | B92: Goodman Company, L.P. | C92: Non-EGU | D92: 51.9 | F92: 0 | H92: 231.1 | J92: 16.7 | N92: 0 | P92: 0 | R92: 299.7 | S92: 0 | T92: 33.5 | U92: 53.59999847 | V92: 10039.95 | W92: 16039.95 | X92: 16039.95 | CU92: 91 | CV92: 91 | CW92: 45-0085 | CX92: 19891.27723
A93: 52-0085 | B93: Latham Pool Products, Inc. dba Viking Pools - TN | C93: Non-EGU | E93: 8.719 | I93: 43.73 | R93: 0 | S93: 52.449 | T93: 33.5 | U93: 53.59999847 | V93: 2811.26632 | W93: 8811.26632 | X93: 9000 | CU93: 92 | CV93: 92 | CW93: 45-0101 | CX93: 19852.76954
A94: 53-0003 | B94: Viskase Companies Inc | C94: Non-EGU | D94: 11.46 | F94: 60.61 | H94: 1168.48 | J94: 41.44 | N94: 0 | P94: 285 | R94: 1566.99 | S94: 0 | T94: 33.5 | U94: 53.59999847 | V94: 52494.165 | W94: 58494.165 | X94: 58494.165 | CU94: 93 | CV94: 93 | CW94: 16-0113 | CX94: 19602.71954
A95: 53-0081 | B95: Tate & Lyle Ingredients Americas LLC | C95: Non-EGU | D95: 267.3 | F95: 247 | H95: 413.4 | J95: 642.8 | N95: 0.5 | P95: 0 | R95: 1571 | S95: 0 | T95: 33.5 | U95: 53.59999847 | V95: 52628.5 | W95: 58628.5 | X95: 58628.5 | CU95: 94 | CV95: 94 | CW95: 49-0068 | CX95: 19599.21884
A96: 53-0090 | B96: Hubbell Lenoir City, Inc. | C96: Non-EGU | D96: 63.75 | F96: 0 | H96: 224.53 | J96: 0 | N96: 0 | P96: 0 | R96: 288.28 | S96: 0 | T96: 33.5 | U96: 53.59999847 | V96: 9657.38 | W96: 15657.38 | X96: 15657.38 | CU96: 95 | CV96: 95 | CW96: 62-0125 | CX96: 19584.21584
A97: 53-0093 | B97: Kimberly-Clark Corporation, Loudon Mill | C97: Non-EGU | D97: 242.25 | E97: 1.99 | F97: 181.64 | G97: 0.23 | H97: 207.1 | I97: 2.11 | J97: 93.31 | K97: 38.3 | R97: 724.3 | S97: 42.63 | T97: 33.5 | U97: 53.59999847 | V97: 26549.01793 | W97: 32549.01793 | X97: 32549.01793 | CU97: 96 | CV97: 96 | CW97: 23-0182 | CX97: 18919.58297
A98: 53-0098 | B98: Malibu Boats, LLC | C98: Non-EGU | D98: 69 | I98: 191 | R98: 69 | S98: 191 | T98: 33.5 | U98: 53.59999847 | V98: 12549.09971 | W98: 18549.09971 | X98: 18549.09971 | CU98: 97 | CV98: 97 | CW98: 11-0039 | CX98: 18482.49558
A99: 53-0110 | B99: Santek Waste Services, Inc. dba Loudon County (Matlock Bend) Landfill | C99: Non-EGU | I99: 11.44 | Q99: 5.09 | R99: 0 | S99: 16.53 | T99: 33.5 | U99: 53.59999847 | V99: 886.0079748 | W99: 6886.007975 | X99: 9000 | CU99: 98 | CV99: 98 | CW99: 22-0177 | CX99: 18147.03549
A100: 54-0009 | B100: Evonik Corporation | C100: Non-EGU | D100: 310.6 | E100: 63.76 | F100: 9.2 | G100: 1.59 | H100: 6.2 | I100: 0.92 | J100: 83.2 | K100: 17 | R100: 409.2 | S100: 83.27 | T100: 33.5 | U100: 53.59999847 | V100: 18171.47187 | W100: 24171.47187 | X100: 24171.47187 | CU100: 99 | CV100: 99 | CW100: 74-0102 | CX100: 18002.3996
A101: 54-0012 | B101: Resolute FP US Inc. | C101: Non-EGU | D101: 681 | E101: 173.4 | F101: 1042 | G101: 6.63 | H101: 912 | I101: 24.37 | J101: 1172 | K101: 181.61 | L101: 245.2 | N101: 254.4 | P101: 64.5 | R101: 4371.1 | S101: 386.01 | T101: 33.5 | U101: 53.59999847 | V101: 167121.9854 | W101: 173121.9854 | X101: 173121.9854 | CU101: 100 | CV101: 100 | CW101: 30-0166 | CX101: 17915.08953
A102: 54-0132 | B102: Johns Manville, Inc. | C102: Non-EGU | D102: 128.3 | F102: 102.11 | H102: 13.2 | J102: 161 | N102: 4.65 | P102: 0 | R102: 409.26 | S102: 0 | T102: 33.5 | U102: 53.59999847 | V102: 13710.21 | W102: 19710.21 | X102: 19710.21 | CU102: 101 | CV102: 101 | CW102: 57-0286 | CX102: 17782.3556
A103: 54-0167 | B103: Johns Manville Corporation | C103: Non-EGU | D103: 132.2 | F103: 8.8 | H103: 288.1 | J103: 132.46 | N103: 0 | P103: 0 | R103: 561.56 | S103: 0 | T103: 33.5 | U103: 53.59999847 | V103: 18812.26 | W103: 24812.26 | X103: 24812.26 | CU103: 102 | CV103: 102 | CW103: 63-0377 | CX103: 17641.82751
A104: 54-0174 | B104: Waupaca Foundry, Inc. Plant 6 | C104: Non-EGU | D104: 297.24 | F104: 96.34 | H104: 369 | J104: 200.36 | N104: 1.4 | P104: 0 | R104: 964.34 | S104: 0 | T104: 33.5 | U104: 53.59999847 | V104: 32305.39 | W104: 38305.39 | X104: 38305.39 | CU104: 103 | CV104: 103 | CW104: 82-0153 | CX104: 17533.80591
A105: 54-0176 | B105: Dynasty Spas, Inc. | C105: Non-EGU | E105: 0.04 | I105: 23.79 | R105: 0 | S105: 23.83 | T105: 33.5 | U105: 53.59999847 | V105: 1277.287964 | W105: 7277.287964 | X105: 9000 | CU105: 104 | CV105: 104 | CW105: 40-0083 | CX105: 17527.80471
A106: 54-0188 | B106: Meadow Branch Landfill - Environmental Trust Company | C106: Non-EGU | E106: 71.29 | G106: 0.01 | I106: 4.8 | K106: 0.16 | M106: 2.59 | R106: 0 | S106: 78.85 | T106: 33.5 | U106: 53.59999847 | V106: 4226.35988 | W106: 10226.35988 | X106: 10226.35988 | CU106: 105 | CV106: 105 | CW106: 76-0071 | CX106: 17437.25812
A107: 56-0004 | B107: Columbia Gulf Transmission Co. Hartsville Compressor Station | C107: Non-EGU | E107: 1.29 | G107: 0.13 | I107: 2.15 | K107: 28.82 | M107: 0.15 | R107: 0 | S107: 32.54 | T107: 33.5 | U107: 53.59999847 | V107: 1744.14395 | W107: 7744.14395 | X107: 9000 | CU107: 106 | CV107: 106 | CW107: 40-0077 | CX107: 17343.76792
A108: 57-0020 | B108: Armstrong Flooring, Inc. | C108: Non-EGU | E108: 3.01 | G108: 0.06 | I108: 7.26 | K108: 2.8 | R108: 0 | S108: 13.13 | T108: 33.5 | U108: 53.59999847 | V108: 703.76798 | W108: 6703.76798 | X108: 9000 | CU108: 107 | CV108: 107 | CW108: 59-0133 | CX108: 17252.24962
A109: 57-0024 | B109: Owens Corning Composite Materials, LLC | C109: Non-EGU | D109: 4.6 | E109: 106.62 | F109: 0.13 | G109: 106.56 | H109: 0.49 | I109: 125.67 | J109: 13.51 | K109: 84.62 | M109: 9.44 | R109: 18.73 | S109: 432.91 | T109: 33.5 | U109: 53.59999847 | V109: 23831.43034 | W109: 29831.43034 | X109: 29831.43034 | CU109: 108 | CV109: 108 | CW109: 06-0014 | CX109: 17214.74212
A110: 57-0035 | B110: Pringles Manufacturing Company | C110: Non-EGU | D110: 181.43 | F110: 6.82 | H110: 169.8 | J110: 211.34 | N110: 0 | P110: 0 | R110: 569.39 | S110: 0 | T110: 33.5 | U110: 53.59999847 | V110: 19074.565 | W110: 25074.565 | X110: 25074.565 | CU110: 109 | CV110: 109 | CW110: 71-0020 | CX110: 17159.23103
A111: 57-0189 | B111: Gerdau Ameristeel US Inc. | C111: Non-EGU | D111: 8.3 | E111: 60.52 | F111: 0.4 | G111: 19.13 | H111: 1.1 | I111: 91 | J111: 31 | K111: 159.85 | O111: 0.16 | R111: 40.8 | S111: 330.66 | T111: 33.5 | U111: 53.59999847 | V111: 19090.1755 | W111: 25090.1755 | X111: 25090.1755 | CU111: 110 | CV111: 110 | CW111: 37-0076 | CX111: 17132.22563
A112: 57-0221 | B112: Foam Fabricators, Inc. | C112: Non-EGU | E112: 0.17 | G112: 0.01 | I112: 98.4 | K112: 2.17 | R112: 0 | S112: 100.75 | T112: 33.5 | U112: 53.59999847 | V112: 5400.199846 | W112: 11400.19985 | X112: 11400.19985 | CU112: 111 | CV112: 111 | CW112: 18-0090 | CX112: 17124.78003
A113: 57-0254 | B113: Sonoco Products Company | C113: Non-EGU | I113: 173.88 | R113: 0 | S113: 173.88 | T113: 33.5 | U113: 53.59999847 | V113: 9319.967735 | W113: 15319.96773 | X113: 15319.96773 | CU113: 112 | CV113: 112 | CW113: 22-0112 | CX113: 17045.16014
A114: 57-0259 | B114: Madison County Development, LLC dba Jackson Madison County Landfill | C114: Non-EGU | E114: 11.29 | G114: 20.68 | I114: 3.07 | K114: 9.78 | R114: 0 | S114: 44.82 | T114: 33.5 | U114: 53.59999847 | V114: 2402.351932 | W114: 8402.351932 | X114: 9000 | CU114: 113 | CV114: 113 | CW114: 37-0001 | CX114: 16830.38647
A115: 57-0286 | B115: Missouri Smelting Technology, Inc. | C115: Non-EGU | D115: 72.6 | F115: 1.5 | H115: 45.3 | J115: 66.4 | N115: 49.8 | P115: 0 | R115: 235.6 | S115: 0 | T115: 33.5 | U115: 53.59999847 | V115: 7892.6 | W115: 13892.6 | X115: 13892.6 | CU115: 114 | CV115: 114 | CW115: 94-0072 | CX115: 16673.59136
A116: 58-0011 | B116: Lodge Manufacturing Company | C116: Non-EGU | D116: 150.98 | F116: 0.6 | H116: 204 | J116: 1.2 | N116: 2.4 | P116: 0 | R116: 359.18 | S116: 0 | T116: 33.5 | U116: 53.59999847 | V116: 12032.53 | W116: 18032.53 | X116: 18032.53 | CU116: 115 | CV116: 115 | CW116: 26-0086 | CX116: 16522.62956
A117: 59-0059 | B117: East Tennessee Natural Gas, LLC dba Lewisburg Compressor Station 3206 | C117: Non-EGU | D117: 1 | F117: 1.93 | H117: 20.5 | J117: 73.9 | N117: 0 | P117: 0 | R117: 97.33 | S117: 0 | T117: 33.5 | U117: 53.59999847 | V117: 3260.555 | W117: 9260.555 | X117: 9260.555 | CU117: 116 | CV117: 116 | CW117: 15-0009 | CX117: 16388.57695
A118: 59-0061 | B118: Calsonic Kansei North America, Inc. | C118: Non-EGU | E118: 0.221 | I118: 23.767 | R118: 0 | S118: 23.988 | T118: 33.5 | U118: 53.59999847 | V118: 1285.756763 | W118: 7285.756763 | X118: 9000 | CU118: 117 | CV118: 117 | CW118: 38-0053 | CX118: 15962.48958
A119: 59-0066 | B119: Trison Coatings Inc | C119: Non-EGU | D119: 11.3 | I119: 0.69 | R119: 11.3 | S119: 0.69 | T119: 33.5 | U119: 53.59999847 | V119: 415.5339989 | W119: 6415.533999 | X119: 9000 | CU119: 118 | CV119: 118 | CW119: 01-0114 | CX119: 15847.30731
A120: 59-0086 | B120: Cedar Ridge Landfill, Inc. | C120: Non-EGU | E120: 1.11 | G120: 1.32 | I120: 5.96 | K120: 2.61 | R120: 0 | S120: 11 | T120: 33.5 | U120: 53.59999847 | V120: 589.5999832 | W120: 6589.599983 | X120: 9000 | CU120: 119 | CV120: 119 | CW120: 72-0116 | CX120: 15324.73021
A121: 59-0133 | B121: Comfort Research, LLC | C121: Non-EGU | D121: 0 | F121: 0 | H121: 225 | J121: 0 | N121: 0 | P121: 0 | R121: 225 | S121: 0 | T121: 33.5 | U121: 53.59999847 | V121: 7537.5 | W121: 13537.5 | X121: 13537.5 | CU121: 120 | CV121: 120 | CW121: 30-0190 | CX121: 14871.7737
A122: 60-0011 | B122: Mersen USA GSTN Corporation | C122: Non-EGU | D122: 696.5 | F122: 125.2 | H122: 114.8 | J122: 56 | N122: 0 | P122: 10 | R122: 1002.5 | S122: 0 | T122: 33.5 | U122: 53.59999847 | V122: 33583.75 | W122: 39583.75 | X122: 39583.75 | CU122: 121 | CV122: 121 | CW122: 01-0170 | CX122: 14854.21263
A123: 60-0095 | B123: Columbia Gulf Transmission Company Hamps | C123: Non-EGU | E123: 6.05 | G123: 0.21 | I123: 12.39 | K123: 357.71 | M123: 5.56 | R123: 0 | S123: 381.92 | T123: 33.5 | U123: 53.59999847 | V123: 20470.91142 | W123: 26470.91142 | X123: 26470.91142 | CU123: 122 | CV123: 122 | CW123: 92-0101 | CX123: 14808.261
A124: 60-0132 | B124: General Motors LLC Spring Hill Manufacturing | C124: Non-EGU | E124: 21.55 | G124: 0.2 | I124: 441.3 | K124: 33.29 | R124: 0 | S124: 496.34 | T124: 33.5 | U124: 53.59999847 | V124: 26603.82324 | W124: 32603.82324 | X124: 32603.82324 | CU124: 123 | CV124: 123 | CW124: 90-0405 | CX124: 14531.70571
A125: 60-0161 | B125: Swarco Industries | C125: Non-EGU | D125: 0 | F125: 0 | H125: 169 | J125: 0 | N125: 0 | P125: 0 | R125: 169 | S125: 0 | T125: 33.5 | U125: 53.59999847 | V125: 5661.5 | W125: 11661.5 | X125: 11661.5 | CU125: 124 | CV125: 124 | CW125: 03-0045 | CX125: 14521.32944
A126: 60-0184 | B126: Sonoco Protective Solutions, Inc. | C126: Non-EGU | E126: 0.89 | G126: 0.09 | I126: 13.88 | K126: 7.19 | R126: 0 | S126: 22.05 | T126: 33.5 | U126: 53.59999847 | V126: 1181.879966 | W126: 7181.879966 | X126: 9000 | CU126: 125 | CV126: 125 | CW126: 60-0161 | CX126: 14451.68972
A127: 60-0200 | B127: Sekisui Plastics USA Inc | C127: Non-EGU | D127: 0 | F127: 0 | H127: 307 | J127: 0 | N127: 0 | P127: 0 | R127: 307 | S127: 0 | T127: 33.5 | U127: 53.59999847 | V127: 10284.5 | W127: 16284.5 | X127: 16284.5 | CU127: 126 | CV127: 126 | CW127: 63-0278 | CX127: 14168.63313
A128: 62-0089 | B128: Sea Ray Inc Tellico Facility | C128: Non-EGU | E128: 113 | M128: 8.5 | O128: 142.6 | R128: 0 | S128: 264.1 | T128: 33.5 | U128: 53.59999847 | V128: 14155.7596 | W128: 20155.7596 | X128: 20155.7596 | CU128: 127 | CV128: 127 | CW128: 84-0067 | CX128: 14134.83286
A129: 62-0090 | B129: Havco Wood Products, LLC | C129: Non-EGU | D129: 247 | F129: 1 | H129: 97 | J129: 156.1 | N129: 7.5 | P129: 0 | R129: 508.6 | S129: 0 | T129: 33.5 | U129: 53.59999847 | V129: 17038.1 | W129: 23038.1 | X129: 23038.1 | CU129: 128 | CV129: 128 | CW129: 90-0039 | CX129: 14082.81986
A130: 62-0096 | B130: Yamaha Jet Boat Manufacturing USA, Inc. | C130: Non-EGU | E130: 29.1 | I130: 259.2 | M130: 8.7 | O130: 179.1 | R130: 0 | S130: 476.1 | T130: 33.5 | U130: 53.59999847 | V130: 25518.95927 | W130: 31518.95927 | X130: 31518.95927 | CU130: 129 | CV130: 129 | CW130: 57-0221 | CX130: 14062.01466
A131: 62-0102 | B131: Bryant Boats, LLC | C131: Non-EGU | D131: 36 | F131: 0 | H131: 100 | J131: 0 | N131: 0 | P131: 0 | R131: 136 | S131: 0 | T131: 33.5 | U131: 53.59999847 | V131: 4556 | W131: 10556 | X131: 10556 | CU131: 130 | CV131: 130 | CW131: 40-0033 | CX131: 13787.05684
A132: 62-0107 | B132: MasterCraft Boat Company, Inc. | C132: Non-EGU | E132: 26.3 | I132: 185.5 | R132: 0 | S132: 211.8 | T132: 33.5 | U132: 53.59999847 | V132: 11352.47968 | W132: 17352.47968 | X132: 17352.47968 | CU132: 131 | CV132: 131 | CW132: 05-0183 | CX132: 13623.52414
A133: 62-0125 | B133: Mastermelt America, LLC | C133: Non-EGU | D133: 101.12 | F133: 99.9 | H133: 61.3 | J133: 8.99 | N133: 0.32 | P133: 0 | R133: 271.63 | S133: 0 | T133: 33.5 | U133: 53.59999847 | V133: 9099.605 | W133: 15099.605 | X133: 15099.605 | CU133: 132 | CV133: 132 | CW133: 90-0232 | CX133: 13599.01924
A134: 62-0166 | B134: MacLean Power, LLC dba MacLean Highline | C134: Non-EGU | D134: 6 | F134: 0 | H134: 0.3 | J134: 0 | N134: 98.8 | P134: 0 | R134: 105.1 | S134: 0 | T134: 33.5 | U134: 53.59999847 | V134: 3520.85 | W134: 9520.85 | X134: 9520.85 | CU134: 133 | CV134: 133 | CW134: 71-0148 | CX134: 13444.26029
A135: 63-0092 | B135: Nyrstar Clarksville Inc. | C135: Non-EGU | E135: 73.5 | G135: 306.3 | I135: 0.16 | K135: 10.6 | M135: 0.05 | Q135: 2.65 | R135: 0 | S135: 393.26 | T135: 33.5 | U135: 53.59999847 | V135: 21078.7354 | W135: 27078.7354 | X135: 27078.7354 | CU135: 134 | CV135: 134 | CW135: 26-0079 | CX135: 13377.47495
A136: 63-0097 | B136: HQ, 101st Airborne Division and Fort Campbell | C136: Non-EGU | E136: 0.611 | G136: 0.167 | I136: 0.262 | K136: 5.84 | Q136: 1.89 | R136: 0 | S136: 8.77 | T136: 33.5 | U136: 53.59999847 | V136: 470.0719866 | W136: 6470.071987 | X136: 9000 | CU136: 135 | CV136: 135 | CW136: 47-0018 | CX136: 13298.62389
A137: 63-0123 | B137: Precision Printing and Packaging, Inc. dba Multi-Color Corporation | C137: Non-EGU | D137: 9.4 | F137: 17.98 | H137: 366.59 | J137: 23.99 | N137: 0 | P137: 0 | R137: 417.96 | S137: 0 | T137: 33.5 | U137: 53.59999847 | V137: 14001.66 | W137: 20001.66 | X137: 20001.66 | CU137: 136 | CV137: 136 | CW137: 06-0085 | CX137: 13151.42976
A138: 63-0129 | B138: Bi-County Solid Waste Management System | C138: Non-EGU | I138: 6.8 | R138: 0 | S138: 6.8 | T138: 33.5 | U138: 53.59999847 | V138: 364.4799896 | W138: 6364.47999 | X138: 9000 | CU138: 137 | CV138: 137 | CW138: 66-0101 | CX138: 13119.3791
A139: 63-0135 | B139: Florim USA, Inc. | C139: Non-EGU | D139: 205.5 | F139: 153.98 | H139: 97.5 | J139: 89.5 | N139: 7.38 | P139: 0 | R139: 553.86 | S139: 0 | T139: 33.5 | U139: 53.59999847 | V139: 18554.31 | W139: 24554.31 | X139: 24554.31 | CU139: 138 | CV139: 138 | CW139: 35-0001 | CX139: 13011.40176
A140: 63-0278 | B140: Bi-County Gas Producers, LLC | C140: Non-EGU | D140: 42.3 | F140: 0.08 | H140: 40.32 | J140: 80.64 | N140: 0 | P140: 0 | R140: 163.34 | S140: 0 | T140: 33.5 | U140: 53.59999847 | V140: 5471.89 | W140: 11471.89 | X140: 11471.89 | CU140: 139 | CV140: 139 | CW140: 50-0054 | CX140: 12961.87875
A141: 63-0320 | B141: Hankook Tire Manufacturing Tennessee, LP dba Hankook Tire Tennessee Plant | C141: Non-EGU | D141: 92.63 | F141: 34.28 | H141: 648.47 | J141: 34.26 | N141: 0 | P141: 0 | R141: 809.64 | S141: 0 | T141: 33.5 | U141: 53.59999847 | V141: 27122.94 | W141: 33122.94 | X141: 33122.94 | CU141: 140 | CV141: 140 | CW141: 15-0005 | CX141: 12821.86387
A142: 63-0339 | B142: Foxman LLC dba Foxman â€“ Clarksville Data Center | C142: Non-EGU | D142: 30.99 | F142: 2.95 | H142: 27.5 | J142: 249 | N142: 0 | P142: 0 | R142: 310.44 | S142: 0 | T142: 33.5 | U142: 53.59999847 | V142: 10399.74 | W142: 16399.74 | X142: 16399.74 | CU142: 141 | CV142: 141 | CW142: 62-0102 | CX142: 12801.35977
A143: 63-0377 | B143: LG Electronics USA, Inc. | C143: Non-EGU | D143: 17.31 | F143: 0.14 | H143: 208.9 | J143: 6.44 | N143: 0 | P143: 0 | R143: 232.79 | S143: 0 | T143: 33.5 | U143: 53.59999847 | V143: 7798.465 | W143: 13798.465 | X143: 13798.465 | CU143: 142 | CV143: 142 | CW143: 91-0075 | CX143: 12461.29178
A144: 64-0001 | B144: Jack Daniel Distillery, Lem Motlow Proprietor, Inc. | C144: Non-EGU | D144: 63.166 | E144: 4.756 | F144: 2.04 | G144: 2.678 | H144: 8.6 | I144: 883.72 | J144: 40.94 | K144: 68.979 | R144: 114.746 | S144: 960.133 | T144: 33.5 | U144: 53.59999847 | V144: 55307.11833 | W144: 61307.11833 | X144: 61307.11833 | CU144: 143 | CV144: 143 | CW144: 65-0049 | CX144: 12322.26399
A145: 64-0013 | B145: Jack Daniel Distillery, Lem Motlow Proprietor | C145: Non-EGU | D145: 7.04 | F145: 226 | H145: 4000 | J145: 76.3 | N145: 0 | P145: 0 | R145: 4309.34 | S145: 0 | T145: 33.5 | U145: 53.59999847 | V145: 144362.89 | W145: 150362.89 | X145: 150362.89 | CU145: 144 | CV145: 144 | CW145: 54-0188 | CX145: 12309.57674
A146: 65-0044 | B146: Tennessee Coatings, Inc dba Ellison Custom Coatings | C146: Non-EGU | D146: 37.93 | F146: 0 | H146: 50 | J146: 0 | N146: 0 | P146: 0 | R146: 87.93 | S146: 0 | T146: 33.5 | U146: 53.59999847 | V146: 2945.655 | W146: 8945.655 | X146: 9000 | CU146: 145 | CV146: 145 | CW146: 16-0010 | CX146: 12285.8108
A147: 65-0049 | B147: Heraeus Metal Processing, LLC | C147: Non-EGU | D147: 60.92 | F147: 19.38 | H147: 15.26 | J147: 30.86 | N147: 0 | P147: 0 | R147: 126.42 | S147: 0 | T147: 33.5 | U147: 53.59999847 | V147: 4235.07 | W147: 10235.07 | X147: 10235.07 | CU147: 146 | CV147: 146 | CW147: 73-0112 | CX147: 12261.33978
A148: 66-0101 | B148: Texas Gas Transmission, LLC dba Kenton Compressor Station | C148: Non-EGU | E148: 0.06 | G148: 0.01 | I148: 3 | K148: 85.9 | R148: 0 | S148: 88.97 | T148: 33.5 | U148: 53.59999847 | V148: 4768.791864 | W148: 10768.79186 | X148: 10768.79186 | CU148: 147 | CV148: 147 | CW148: 78-0086 | CX148: 12081.2158
A149: 66-0113 | B149: Northwest Tennessee Disposal Corporation dba Northwest Tennessee Landfill | C149: Non-EGU | E149: 13.35 | G149: 19.64 | I149: 5.06 | K149: 9.34 | R149: 0 | S149: 47.39 | T149: 33.5 | U149: 53.59999847 | V149: 2540.103928 | W149: 8540.103928 | X149: 9000 | CU149: 148 | CV149: 148 | CW149: 21-0031 | CX149: 12011.90235
A150: 66-0123 | B150: Green Plains Obion LLC | C150: Non-EGU | D150: 53.46 | F150: 97.19 | H150: 118.56 | J150: 151.95 | N150: 0 | P150: 0 | R150: 421.16 | S150: 0 | T150: 33.5 | U150: 53.59999847 | V150: 14108.86 | W150: 20108.86 | X150: 20108.86 | CU150: 149 | CV150: 149 | CW150: 30-0165 | CX150: 11981.1958
A151: 66-0185 | B151: ECM of Ridgely, LLC | C151: Non-EGU | D151: 0 | F151: 0.49 | H151: 4.6 | J151: 0 | N151: 4.41 | P151: 0 | R151: 9.5 | S151: 0 | T151: 33.5 | U151: 53.59999847 | V151: 318.25 | W151: 6318.25 | X151: 9000 | CU151: 150 | CV151: 150 | CW151: 30-0136 | CX151: 11936.1868
A152: 67-0054 | B152: ABC - Inoac Exterior Systems LLC | C152: Non-EGU | D152: 81.9 | F152: 2.19 | H152: 245.2 | J152: 11 | N152: 0 | P152: 0 | R152: 340.29 | S152: 0 | T152: 33.5 | U152: 53.59999847 | V152: 11399.715 | W152: 17399.715 | X152: 17399.715 | CU152: 151 | CV152: 151 | CW152: 92-0052 | CX152: 11696.62356
A153: 68-0001 | B153: Tennessee Gas Pipeline Company LLC - Compressor Station 79 | C153: Non-EGU | E153: 0.037 | G153: 0.0032 | I153: 0.29 | K153: 3.12 | M153: 7e-06 | R153: 0 | S153: 3.450207 | T153: 33.5 | U153: 53.59999847 | V153: 184.9310899 | W153: 6184.93109 | X153: 9000 | CU153: 152 | CV153: 152 | CW153: 28-0091 | CX153: 11686.13681
A154: 68-0034 | B154: East Tennessee Natural Gas, LLC - Lobelville Compressor Station 3201 | C154: Non-EGU | D154: 1.15 | F154: 9.35 | H154: 2.75 | J154: 70.66 | N154: 0 | P154: 0 | R154: 83.91 | S154: 0 | T154: 33.5 | U154: 53.59999847 | V154: 2810.985 | W154: 8810.985 | X154: 9000 | CU154: 153 | CV154: 153 | CW154: 43-0003 | CX154: 11533.60631
A155: 71-0020 | B155: Cummins Filtration | C155: Non-EGU | D155: 13.71 | F155: 4.38 | H155: 159.2 | J155: 45.85 | N155: 0 | P155: 0 | R155: 223.14 | S155: 0 | T155: 33.5 | U155: 53.59999847 | V155: 7475.19 | W155: 13475.19 | X155: 13475.19 | CU155: 154 | CV155: 154 | CW155: 73-0137 | CX155: 11335.06662
A156: 71-0035 | B156: Tennessee Technological University | C156: Non-EGU | E156: 0.9 | G156: 0.4 | I156: 0.5 | K156: 6.4 | R156: 0 | S156: 8.2 | T156: 33.5 | U156: 53.59999847 | V156: 439.5199875 | W156: 6439.519987 | X156: 9000 | CU156: 155 | CV156: 155 | CW156: 16-0123 | CX156: 11285.32078
A157: 71-0148 | B157: East Tennessee Natural Gas, LLC - Monterey Compressor Station 3107 | C157: Non-EGU | I157: 4.23 | K157: 88.8 | R157: 0 | S157: 93.03 | T157: 33.5 | U157: 53.59999847 | V157: 4986.407858 | W157: 10986.40786 | X157: 10986.40786 | CU157: 156 | CV157: 156 | CW157: 85-0027 | CX157: 11276.51858
A158: 72-0049 | B158: La-Z-Boy Tennessee | C158: Non-EGU | D158: 233 | F158: 8.9 | H158: 22.8 | I158: 38.061 | J158: 95.7 | R158: 360.4 | S158: 38.061 | T158: 33.5 | U158: 53.59999847 | V158: 14113.46954 | W158: 20113.46954 | X158: 20113.46954 | CU158: 157 | CV158: 157 | CW158: 62-0166 | CX158: 11256.05082
A159: 72-0107 | B159: Huber Engineered Woods, LLC | C159: Non-EGU | D159: 244.8 | F159: 30.7 | H159: 191.27 | J159: 201 | N159: 9 | P159: 0 | R159: 676.77 | S159: 0 | T159: 33.5 | U159: 53.59999847 | V159: 22671.795 | W159: 28671.795 | X159: 28671.795 | CU159: 158 | CV159: 158 | CW159: 82-0052 | CX159: 11036.50693
A160: 72-0109 | B160: Santek Waste Services, LLC dba Rhea County Landfill | C160: Non-EGU | I160: 15.05 | Q160: 13.39 | R160: 0 | S160: 28.44 | T160: 33.5 | U160: 53.59999847 | V160: 1524.383957 | W160: 7524.383957 | X160: 9000 | CU160: 159 | CV160: 159 | CW160: 59-0059 | CX160: 10867.47314
A161: 72-0116 | B161: General Shale Brick - Plant 42 | C161: Non-EGU | E161: 6.18 | G161: 67.62 | I161: 1.91 | K161: 40.67 | O161: 0.15 | R161: 0 | S161: 116.53 | T161: 33.5 | U161: 53.59999847 | V161: 6246.007822 | W161: 12246.00782 | X161: 12246.00782 | CU161: 160 | CV161: 160 | CW161: 26-0131 | CX161: 10491.52241
A162: 73-0013 | B162: Tennessee Valley Authority (TVA) - Kingston Fossil Plant | C162: EGU | E162: 182 | G162: 1327 | I162: 51.5 | K162: 1158 | M162: 23.8 | R162: 0 | S162: 2742.3 | T162: 46.90000153 | U162: 75.04000092 | V162: 205782.1945 | W162: 211782.1945 | X162: 211782.1945 | CU162: 161 | CV162: 161 | CW162: 65-0044 | CX162: 10397.37915
A163: 73-0107 | B163: American Zinc Recycling Corp | C163: Non-EGU | D163: 195.08 | F163: 76.89 | H163: 163.67 | J163: 190.63 | N163: 0 | P163: 0 | R163: 626.27 | S163: 0 | T163: 33.5 | U163: 53.59999847 | V163: 20980.045 | W163: 26980.045 | X163: 26980.045 | CU163: 162 | CV163: 162 | CW163: 52-0085 | CX163: 10196.9688
A164: 73-0112 | B164: US Department of Energy, Oak Ridge National Laboratory (Office of Science) | C164: Non-EGU | D164: 90 | E164: 1 | I164: 1 | K164: 20 | R164: 90 | S164: 22 | T164: 33.5 | U164: 53.59999847 | V164: 4194.199966 | W164: 10194.19997 | X164: 10194.19997 | CU164: 163 | CV164: 163 | CW164: 68-0034 | CX164: 10196.33896
A165: 73-0125 | B165: Teijin Carbon America, Inc. | C165: Non-EGU | D165: 44.7 | F165: 5.42 | H165: 118.9 | J165: 107.3 | N165: 13.2 | P165: 0 | R165: 289.52 | S165: 0 | T165: 33.5 | U165: 53.59999847 | V165: 9698.92 | W165: 15698.92 | X165: 15698.92 | CU165: 164 | CV165: 164 | CW165: 80-0009 | CX165: 10098.62423
A166: 73-0137 | B166: Diversified Scientific Services, Inc | C166: Non-EGU | D166: 18.02 | F166: 21.9 | H166: 15 | J166: 39 | N166: 12.76 | P166: 0 | R166: 106.68 | S166: 0 | T166: 33.5 | U166: 53.59999847 | V166: 3573.78 | W166: 9573.78 | X166: 9573.78 | CU166: 165 | CV166: 165 | CW166: 93-0067 | CX166: 10056.31096
A167: 73-0182 | B167: Isotek Systems, LLC dba US DOE, Oak Ridge National Laboratory - Building 2026 | C167: Non-EGU | D167: 45.08 | F167: 0 | H167: 0.1 | J167: 1.42 | N167: 0 | P167: 0 | R167: 46.6 | S167: 0 | T167: 33.5 | U167: 53.59999847 | V167: 1561.1 | W167: 7561.1 | X167: 9000 | CU167: 166 | CV167: 166 | CW167: 78-0028 | CX167: 10008.30137
A168: 74-0102 | B168: Drew Foam Companies Inc. | C168: Non-EGU | D168: 0 | F168: 0 | H168: 240 | J168: 0 | N168: 0 | P168: 0 | R168: 240 | S168: 0 | T168: 33.5 | U168: 53.59999847 | V168: 8040 | W168: 14040 | X168: 14040 | CU168: 167 | CV168: 167 | CW168: 51-0031 | CX168: 9931.382435
A169: 75-0057 | B169: Bridgestone Americas Tire Operations, LLC - LaVergne | C169: Non-EGU | D169: 60.56 | F169: 0.7 | H169: 467.6 | J169: 112.89 | N169: 0 | P169: 0 | R169: 641.75 | S169: 0 | T169: 33.5 | U169: 53.59999847 | V169: 21498.625 | W169: 27498.625 | X169: 27498.625 | CU169: 168 | CV169: 168 | CW169: 82-0007 | CX169: 9804.15064
A170: 75-0155 | B170: Nissan North America, Inc. - Smyrna | C170: Non-EGU | D170: 96.3 | E170: 5.73 | H170: 6.1 | I170: 1663.56 | K170: 45.81 | R170: 102.4 | S170: 1715.1 | T170: 33.5 | U170: 53.59999847 | V170: 95359.75738 | W170: 101359.7574 | X170: 101359.7574 | CU170: 169 | CV170: 169 | CW170: 66-0113 | CX170: 9792.147641
A171: 75-0381 | B171: BFI Waste Systems of Tennessee, LLC dba Middle Point Landfill | C171: Non-EGU | E171: 0.06 | I171: 0.84 | M171: 0.48 | R171: 0 | S171: 1.38 | T171: 33.5 | U171: 53.59999847 | V171: 73.96799789 | W171: 6073.967998 | X171: 9000 | CU171: 170 | CV171: 170 | CW171: 57-0259 | CX171: 9586.49625
A172: 76-0071 | B172: Volunteer Regional Landfill Scott Solid | C172: Non-EGU | E172: 132.19 | G172: 0.56 | I172: 4.67 | K172: 2.87 | O172: 2.64 | R172: 0 | S172: 142.93 | T172: 33.5 | U172: 53.59999847 | V172: 7661.047782 | W172: 13661.04778 | X172: 13661.04778 | CU172: 171 | CV172: 171 | CW172: 24-0080 | CX172: 9575.71488
A173: 78-0028 | B173: Johnson Matthey, Inc. | C173: Non-EGU | D173: 71.56 | F173: 1.43 | H173: 0.79 | J173: 6.37 | N173: 0 | P173: 0 | R173: 80.15 | S173: 0 | T173: 33.5 | U173: 53.59999847 | V173: 2685.025 | W173: 8685.025 | X173: 9000 | CU173: 172 | CV173: 172 | CW173: 37-0080 | CX173: 9468.066655
A174: 78-0086 | B174: East Tennessee Natural Gas, LLC - Boyd's Creek Compressor Station (Station 3302) | C174: Non-EGU | D174: 3.4 | F174: 2.6 | H174: 6.9 | J174: 108.7 | N174: 0 | P174: 0 | R174: 121.6 | S174: 0 | T174: 33.5 | U174: 53.59999847 | V174: 4073.6 | W174: 10073.6 | X174: 10073.6 | CU174: 173 | CV174: 173 | CW174: 94-0100 | CX174: 9466.466255
A175: 80-0009 | B175: Bon L Manufacturing Company | C175: Non-EGU | E175: 15.97 | G175: 0.16 | I175: 13.59 | K175: 18.53 | O175: 2.97 | R175: 0 | S175: 51.22 | T175: 33.5 | U175: 53.59999847 | V175: 2745.391922 | W175: 8745.391922 | X175: 9000 | CU175: 174 | CV175: 174 | CW175: 05-0011 | CX175: 9000
A176: 81-0011 | B176: Tennessee Valley Authority - Cumberland Fossil Plant | C176: EGU | E176: 541 | F176: 4000 | I176: 135 | K176: 4000 | M176: 218 | R176: 4000 | S176: 4894 | T176: 46.90000153 | U176: 75.04000092 | V176: 554845.7706 | W176: 560845.7706 | X176: 560845.7706 | CU176: 175 | CV176: 175 | CW176: 06-0205 | CX176: 9000
A177: 81-0030 | B177: Georgia-Pacific Gypsum LLC | C177: Non-EGU | D177: 145.76 | F177: 1.4 | H177: 155.14 | J177: 112.24 | N177: 0 | P177: 0 | R177: 414.54 | S177: 0 | T177: 33.5 | U177: 53.59999847 | V177: 13887.09 | W177: 19887.09 | X177: 19887.09 | CU177: 176 | CV177: 176 | CW177: 15-0020 | CX177: 9000
A178: 82-0003 | B178: Eastman Chemical Company | C178: Non-EGU | D178: 452 | E178: 169 | F178: 4000 | H178: 4000 | J178: 4000 | L178: 390 | M178: 1 | N178: 797 | O178: 107 | R178: 13639 | S178: 277 | T178: 33.5 | U178: 53.59999847 | V178: 471753.6996 | W178: 477753.6996 | X178: 477753.6996 | CU178: 177 | CV178: 177 | CW178: 20-0052 | CX178: 9000
A179: 82-0007 | B179: Seaman Corporation | C179: Non-EGU | E179: 0.22 | G179: 0.02 | I179: 44.09 | K179: 2.94 | M179: 0.27 | R179: 0 | S179: 47.54 | T179: 33.5 | U179: 53.59999847 | V179: 2548.143927 | W179: 8548.143927 | X179: 9000 | CU179: 178 | CV179: 178 | CW179: 22-0055 | CX179: 9000
A180: 82-0022 | B180: Domtar Paper Company, LLC - Kingsport Mill | C180: Non-EGU | D180: 154.61 | E180: 16.89 | F180: 27.26 | G180: 31.39 | H180: 71.75 | I180: 35.7 | J180: 706.47 | K180: 188.57 | N180: 1.44 | O180: 0.02 | P180: 9.84 | Q180: 4.15 | R180: 971.37 | S180: 276.72 | T180: 33.5 | U180: 53.59999847 | V180: 47373.08658 | W180: 53373.08658 | X180: 53373.08658 | CU180: 179 | CV180: 179 | CW180: 23-0092 | CX180: 9000
A181: 82-0052 | B181: Gregory Pharmaceutical Holdings, LLC dba UPM Pharmaceuticals | C181: Non-EGU | D181: 40.87 | F181: 5.05 | H181: 17.13 | J181: 14.98 | N181: 22.68 | P181: 0 | R181: 100.71 | S181: 0 | T181: 33.5 | U181: 53.59999847 | V181: 3373.785 | W181: 9373.785 | X181: 9373.785 | CU181: 180 | CV181: 180 | CW181: 32-0196 | CX181: 9000
A182: 82-0110 | B182: East Tennessee Natural Gas Station 3308 | C182: Non-EGU | E182: 1.29 | G182: 0.12 | I182: 0.47 | K182: 22.95 | R182: 0 | S182: 24.83 | T182: 33.5 | U182: 53.59999847 | V182: 1330.887962 | W182: 7330.887962 | X182: 9000 | CU182: 181 | CV182: 181 | CW182: 32-0275 | CX182: 9000
A183: 82-0153 | B183: Microporous, LLC | C183: Non-EGU | D183: 49 | F183: 1.28 | H183: 1.97 | J183: 18.38 | N183: 160 | P183: 0 | R183: 230.63 | S183: 0 | T183: 33.5 | U183: 53.59999847 | V183: 7726.105 | W183: 13726.105 | X183: 13726.105 | CU183: 182 | CV183: 182 | CW183: 34-0014 | CX183: 9000
A184: 82-0481 | B184: EcoSafe Systems, LLC dba Eco-Safe Landfill | C184: Non-EGU | E184: 4.47 | G184: 5.08 | I184: 9.38 | K184: 11.62 | R184: 0 | S184: 30.55 | T184: 33.5 | U184: 53.59999847 | V184: 1637.479953 | W184: 7637.479953 | X184: 9000 | CU184: 183 | CV184: 183 | CW184: 36-0061 | CX184: 9000
A185: 82-0510 | B185: Primester | C185: Non-EGU | D185: 7.1 | F185: 1.1 | H185: 43.15 | J185: 0 | N185: 0 | P185: 0 | R185: 51.35 | S185: 0 | T185: 33.5 | U185: 53.59999847 | V185: 1720.225 | W185: 7720.225 | X185: 9000 | CU185: 184 | CV185: 184 | CW185: 40-0102 | CX185: 9000
A186: 83-0008 | B186: Tennessee Gas Pipeline Company, LLC - Compressor Station 87 | C186: Non-EGU | E186: 27.04 | G186: 0.48 | I186: 95.37 | K186: 1083.077 | M186: 0.11 | R186: 0 | S186: 1206.077 | T186: 33.5 | U186: 53.59999847 | V186: 64645.72536 | W186: 70645.72536 | X186: 70645.72536 | CU186: 185 | CV186: 185 | CW186: 40-0107 | CX186: 9000
A187: 83-0014 | B187: Midwestern Gas Transmission Company dba MGT - Portland Compressor Station (2101) | C187: Non-EGU | D187: 8.2 | F187: 2.78 | I187: 7.34 | K187: 191.95 | R187: 10.98 | S187: 199.29 | T187: 33.5 | U187: 53.59999847 | V187: 11049.7737 | W187: 17049.7737 | X187: 17049.7737 | CU187: 186 | CV187: 186 | CW187: 53-0110 | CX187: 9000
A188: 83-0025 | B188: Tennessee Valley Authority - Gallatin Fossil Plant | C188: EGU | E188: 183 | G188: 1828 | I188: 99 | K188: 1304 | M188: 10.9 | P188: 15.1 | R188: 15.1 | S188: 3424.9 | T188: 46.90000153 | U188: 75.04000092 | V188: 257712.6892 | W188: 263712.6892 | X188: 263712.6892 | CU188: 187 | CV188: 187 | CW188: 54-0176 | CX188: 9000
A189: 83-0129 | B189: Hoeganaes Corporation | C189: Non-EGU | D189: 155.5 | F189: 106.9 | H189: 46.8 | J189: 272.5 | N189: 8.5 | P189: 0 | R189: 590.2 | S189: 0 | T189: 33.5 | U189: 53.59999847 | V189: 19771.7 | W189: 25771.7 | X189: 25771.7 | CU189: 188 | CV189: 188 | CW189: 56-0004 | CX189: 9000
A190: 84-0067 | B190: Texas Gas Transmission, LLC | C190: Non-EGU | E190: 28.65 | G190: 0.01 | I190: 2 | K190: 71 | R190: 0 | S190: 101.66 | T190: 33.5 | U190: 53.59999847 | V190: 5448.975845 | W190: 11448.97584 | X190: 11448.97584 | CU190: 189 | CV190: 189 | CW190: 57-0020 | CX190: 9000
A191: 85-0027 | B191: East Tennessee Natural Gas, LLC dba Dixon Springs Compressor Station (Station 3104) | C191: Non-EGU | I191: 1.32 | K191: 64.62 | R191: 0 | S191: 65.94 | T191: 33.5 | U191: 53.59999847 | V191: 3534.383899 | W191: 9534.383899 | X191: 9534.383899 | CU191: 190 | CV191: 190 | CW191: 59-0061 | CX191: 9000
A192: 87-0028 | B192: Carmeuse Lime & Stone, O-N Minerals (Luttrell) Company | C192: Non-EGU | D192: 137.3 | F192: 746.8 | H192: 2 | J192: 452.6 | N192: 0 | P192: 0 | R192: 1338.7 | S192: 0 | T192: 33.5 | U192: 53.59999847 | V192: 44846.45 | W192: 50846.45 | X192: 50846.45 | CU192: 191 | CV192: 191 | CW192: 59-0066 | CX192: 9000
A193: 89-0077 | B193: Bridgestone Americas Tire Operations, LLC dba Warren Plant | C193: Non-EGU | D193: 160.8 | E193: 1.63 | G193: 0.13 | H193: 402 | I193: 1.18 | K193: 21.4 | M193: 3.56 | R193: 562.8 | S193: 27.9 | T193: 33.5 | U193: 53.59999847 | V193: 20349.23996 | W193: 26349.23996 | X193: 26349.23996 | CU193: 192 | CV193: 192 | CW193: 59-0086 | CX193: 9000
A194: 90-0039 | B194: Mountain Home Energy Center | C194: Non-EGU | E194: 8.36 | G194: 0.3 | I194: 37.64 | K194: 54.71 | R194: 0 | S194: 101.01 | T194: 33.5 | U194: 53.59999847 | V194: 5414.135846 | W194: 11414.13585 | X194: 11414.13585 | CU194: 193 | CV194: 193 | CW194: 60-0184 | CX194: 9000
A195: 90-0232 | B195: Cantech Industries, Inc. | C195: Non-EGU | D195: 4.95 | F195: 0 | H195: 147 | J195: 0 | N195: 0 | P195: 0 | R195: 151.95 | S195: 0 | T195: 33.5 | U195: 53.59999847 | V195: 5090.325 | W195: 11090.325 | X195: 11090.325 | CU195: 194 | CV195: 194 | CW195: 63-0097 | CX195: 9000
A196: 90-0246 | B196: Iris Glen Environmental Center | C196: Non-EGU | H196: 14.01 | R196: 14.01 | S196: 0 | T196: 33.5 | U196: 53.59999847 | V196: 469.335 | W196: 6469.335 | X196: 9000 | CU196: 195 | CV196: 195 | CW196: 63-0129 | CX196: 9000
A197: 90-0405 | B197: LPI, Inc. | C197: Non-EGU | D197: 71.1 | F197: 0 | H197: 99.5 | J197: 0 | N197: 0 | P197: 0 | R197: 170.6 | S197: 0 | T197: 33.5 | U197: 53.59999847 | V197: 5715.1 | W197: 11715.1 | X197: 11715.1 | CU197: 196 | CV197: 196 | CW197: 66-0185 | CX197: 9000
A198: 91-0001 | B198: Tennessee Gas Pipeline Company, LLC - Compressor Station 555 | C198: Non-EGU | E198: 6.624 | G198: 0.17 | I198: 62.77 | K198: 335.14 | M198: 0.021 | R198: 0 | S198: 404.725 | T198: 33.5 | U198: 53.59999847 | V198: 21693.25938 | W198: 27693.25938 | X198: 27693.25938 | CU198: 197 | CV198: 197 | CW198: 68-0001 | CX198: 9000
A199: 91-0075 | B199: Praxis Companies, LLC | C199: Non-EGU | D199: 68 | F199: 0 | H199: 61.2 | J199: 0 | N199: 0 | P199: 0 | R199: 129.2 | S199: 0 | T199: 33.5 | U199: 53.59999847 | V199: 4328.2 | W199: 10328.2 | X199: 10328.2 | CU199: 198 | CV199: 198 | CW199: 71-0035 | CX199: 9000
A200: 92-0020 | B200: Kentucky-Tennessee Clay Company | C200: Non-EGU | E200: 3.7041 | G200: 0.03 | I200: 0.57 | K200: 6.342 | R200: 0 | S200: 10.6461 | T200: 33.5 | U200: 53.59999847 | V200: 570.6309438 | W200: 6570.630944 | X200: 9000 | CU200: 199 | CV200: 199 | CW200: 72-0109 | CX200: 9000
... 8 more rows

Sheet APConly (hidden)
A1: Title V Funding required (Program expenses) | B1: 8045164
A2: Initial Reserve (default value) | B2: 467994
A3: Final Reserve (default value) | B3: 780230
A4: Minimum Fee (default value) | B4: 9000
A5: Base Fee (default value) | B5: 6000
A6: lastrow (emissions data in spreadsheet) | B6: 207
A12: Delayed Fee Collections Information
A13: Use Delayed Fee Collection in T5 Fee tool | B13: 0 | C13: Value of 0 = NOT Used & ANY Other Value = Used
A14: Percent of Current FY Fees collected Next FY | B14: 0 | C14: Percentage of Fees delayed to next FY for collection
A15: Previous FY Fees collected in Current FY | B15: 0 | C15: Value of Previous FY Fees collection delayed to current FY

Sheet SearchResults (hidden)
A1: baseFee | B1: minFee | C1: NEGU_ALW | D1: EGU_ALW | E1: NEGU_ACT | F1: EGU_ACT | G1: increment | H1: curRevenue | I1: error

Sheet Output
A222: Maximum of Fees | B222: =MAX(B1:B206) -> 0 | C222: =MAX(C1:C206) -> 0 | D222: 0 | E222: 0 | F222: 0 | G222: 0 | H222: 0 | I222: 0 | J222: 0 | K222: 0 | L222: 0 | M222: 0 | N222: 0 | O222: 0 | P222: 0 | Q222: 0 | R222: 0 | S222: 0 | T222: 0 | U222: 0 | V222: 0 | W222: 0 | X222: 0 | Y222: 0 | Z222: 0 | AA222: 0 | AB222: 0 | AC222: 0 | AD222: 0 | AE222: 0 | AF222: 0 | AG222: 0 | AH222: 0 | AI222: 0 | AJ222: 0 | AK222: 0 | AL222: 0 | AM222: 0 | AN222: 0 | AO222: 0 | AP222: 0 | AQ222: 0 | AR222: 0 | AS222: 0 | AT222: 0 | AU222: 0 | AV222: 0 | AW222: 0 | AX222: 0 | AY222: 0 | AZ222: 0 | BA222: 0 | BB222: 0 | BC222: 0 | BD222: 0 | BE222: 0 | BF222: 0 | BG222: 0 | BH222: 0 | BI222: 0 | BJ222: 0 | BK222: 0 | BL222: 0 | BM222: 0 | BN222: 0 | BO222: =MAX(BO1:BO206) -> 0 | BP222: 0 | BQ222: 0 | BR222: 0 | BS222: 0 | BT222: 0 | BU222: 0 | BV222: 0 | BW222: 0 | BX222: 0 | BY222: 0 | BZ222: 0 | CA222: 0 | CB222: 0 | CC222: 0 | CD222: 0 | CE222: 0 | CF222: 0 | CG222: 0 | CH222: 0 | CI222: 0 | CJ222: 0 | CK222: 0 | CL222: 0 | CM222: 0 | CN222: 0 | CO222: 0 | CP222: 0 | CQ222: 0 | CR222: 0 | CS222: 0 | CT222: 0 | CU222: 0 | CV222: 0 | CW222: 0 | CX222: 0 | CY222: 0 | CZ222: 0 | DA222: 0 | DB222: 0 | DC222: 0 | DD222: 0 | DE222: 0 | DF222: 0 | DG222: 0 | DH222: 0 | DI222: 0 | DJ222: 0 | DK222: 0 | DL222: 0 | DM222: 0 | DN222: 0 | DO222: 0 | DP222: 0 | DQ222: 0 | DR222: 0 | DS222: 0 | DT222: 0 | DU222: 0 | DV222: 0 | DW222: 0 | DX222: 0 | DY222: 0 | DZ222: 0 | EA222: =MAX(EA1:EA206) -> 0 | EB222: 0 | EC222: 0 | ED222: 0 | EE222: 0 | EF222: 0 | EG222: 0 | EH222: 0 | EI222: 0 | EJ222: 0 | EK222: 0 | EL222: 0 | EM222: 0 | EN222: 0 | EO222: 0 | EP222: 0 | EQ222: 0 | ER222: 0 | ES222: 0 | ET222: 0 | EU222: 0 | EV222: 0
A223: delta-Max | C223: =C222-B222 -> 0 | D223: =D222-C222 -> 0 | E223: 0 | F223: 0 | G223: 0 | H223: 0 | I223: 0 | J223: 0 | K223: 0 | L223: 0 | M223: 0 | N223: 0 | O223: 0 | P223: 0 | Q223: 0 | R223: 0 | S223: 0 | T223: 0 | U223: 0 | V223: 0 | W223: 0 | X223: 0 | Y223: 0 | Z223: 0 | AA223: 0 | AB223: 0 | AC223: 0 | AD223: 0 | AE223: 0 | AF223: 0 | AG223: 0 | AH223: 0 | AI223: 0 | AJ223: 0 | AK223: 0 | AL223: 0 | AM223: 0 | AN223: 0 | AO223: 0 | AP223: 0 | AQ223: 0 | AR223: 0 | AS223: 0 | AT223: 0 | AU223: 0 | AV223: 0 | AW223: 0 | AX223: 0 | AY223: 0 | AZ223: 0 | BA223: 0 | BB223: 0 | BC223: 0 | BD223: 0 | BE223: 0 | BF223: 0 | BG223: 0 | BH223: 0 | BI223: 0 | BJ223: 0 | BK223: 0 | BL223: 0 | BM223: 0 | BN223: 0 | BO223: 0 | BP223: =BP222-BO222 -> 0 | BQ223: 0 | BR223: 0 | BS223: 0 | BT223: 0 | BU223: 0 | BV223: 0 | BW223: 0 | BX223: 0 | BY223: 0 | BZ223: 0 | CA223: 0 | CB223: 0 | CC223: 0 | CD223: 0 | CE223: 0 | CF223: 0 | CG223: 0 | CH223: 0 | CI223: 0 | CJ223: 0 | CK223: 0 | CL223: 0 | CM223: 0 | CN223: 0 | CO223: 0 | CP223: 0 | CQ223: 0 | CR223: 0 | CS223: 0 | CT223: 0 | CU223: 0 | CV223: 0 | CW223: 0 | CX223: 0 | CY223: 0 | CZ223: 0 | DA223: 0 | DB223: 0 | DC223: 0 | DD223: 0 | DE223: 0 | DF223: 0 | DG223: 0 | DH223: 0 | DI223: 0 | DJ223: 0 | DK223: 0 | DL223: 0 | DM223: 0 | DN223: 0 | DO223: 0 | DP223: 0 | DQ223: 0 | DR223: 0 | DS223: 0 | DT223: 0 | DU223: 0 | DV223: 0 | DW223: 0 | DX223: 0 | DY223: 0 | DZ223: 0 | EA223: 0 | EB223: =EB222-EA222 -> 0 | EC223: 0 | ED223: 0 | EE223: 0 | EF223: 0 | EG223: 0 | EH223: 0 | EI223: 0 | EJ223: 0 | EK223: 0 | EL223: 0 | EM223: 0 | EN223: 0 | EO223: 0 | EP223: 0 | EQ223: 0 | ER223: 0 | ES223: 0 | ET223: 0 | EU223: 0 | EV223: 0
A224: Mean | B224: =AVERAGE(B1:B206) ->  | C224: =AVERAGE(C1:C206) ->  | BO224: =AVERAGE(BO1:BO206) ->  | EA224: =AVERAGE(EA1:EA206) -> 
A225: delta-Mean | C225: =C224-B224 ->  | D225: =D224-C224 ->  | E225: =E224-D224 ->  | F225: =F224-E224 ->  | G225: =G224-F224 ->  | H225: =H224-G224 ->  | I225: =I224-H224 ->  | J225: =J224-I224 ->  | K225: =K224-J224 ->  | L225: =L224-K224 ->  | M225: =M224-L224 ->  | N225: =N224-M224 ->  | O225: =O224-N224 ->  | P225: =P224-O224 ->  | Q225: =Q224-P224 ->  | R225: =R224-Q224 ->  | S225: =S224-R224 ->  | T225: =T224-S224 ->  | U225: =U224-T224 ->  | V225: =V224-U224 ->  | W225: =W224-V224 ->  | X225: =X224-W224 ->  | Y225: =Y224-X224 ->  | Z225: =Z224-Y224 ->  | AA225: =AA224-Z224 ->  | AB225: =AB224-AA224 ->  | AC225: =AC224-AB224 ->  | AD225: =AD224-AC224 ->  | AE225: =AE224-AD224 ->  | AF225: =AF224-AE224 ->  | AG225: =AG224-AF224 ->  | AH225: =AH224-AG224 ->  | AI225: =AI224-AH224 ->  | AJ225: =AJ224-AI224 ->  | AK225: =AK224-AJ224 ->  | AL225: =AL224-AK224 ->  | AM225: =AM224-AL224 ->  | AN225: =AN224-AM224 ->  | AO225: =AO224-AN224 ->  | AP225: =AP224-AO224 ->  | AQ225: =AQ224-AP224 ->  | AR225: =AR224-AQ224 ->  | AS225: =AS224-AR224 ->  | AT225: =AT224-AS224 ->  | AU225: =AU224-AT224 ->  | AV225: =AV224-AU224 ->  | AW225: =AW224-AV224 ->  | AX225: =AX224-AW224 ->  | AY225: =AY224-AX224 ->  | AZ225: =AZ224-AY224 ->  | BA225: =BA224-AZ224 ->  | BB225: =BB224-BA224 ->  | BC225: =BC224-BB224 ->  | BD225: =BD224-BC224 ->  | BE225: =BE224-BD224 ->  | BF225: =BF224-BE224 ->  | BG225: =BG224-BF224 ->  | BH225: =BH224-BG224 ->  | BI225: =BI224-BH224 ->  | BJ225: =BJ224-BI224 ->  | BK225: =BK224-BJ224 ->  | BL225: =BL224-BK224 ->  | BM225: =BM224-BL224 ->  | BN225: =BN224-BM224 ->  | BO225: =BO224-BN224 ->  | BP225: =BP224-BO224 ->  | BQ225: =BQ224-BP224 ->  | BR225: =BR224-BQ224 ->  | BS225: =BS224-BR224 ->  | BT225: =BT224-BS224 ->  | BU225: =BU224-BT224 ->  | BV225: =BV224-BU224 ->  | BW225: =BW224-BV224 ->  | BX225: =BX224-BW224 ->  | BY225: =BY224-BX224 ->  | BZ225: =BZ224-BY224 ->  | CA225: =CA224-BZ224 ->  | CB225: =CB224-CA224 ->  | CC225: =CC224-CB224 ->  | CD225: =CD224-CC224 ->  | CE225: =CE224-CD224 ->  | CF225: =CF224-CE224 ->  | CG225: =CG224-CF224 ->  | CH225: =CH224-CG224 ->  | CI225: =CI224-CH224 ->  | CJ225: =CJ224-CI224 ->  | CK225: =CK224-CJ224 ->  | CL225: =CL224-CK224 ->  | CM225: =CM224-CL224 ->  | CN225: =CN224-CM224 ->  | CO225: =CO224-CN224 ->  | CP225: =CP224-CO224 ->  | CQ225: =CQ224-CP224 ->  | CR225: =CR224-CQ224 ->  | CS225: =CS224-CR224 ->  | CT225: =CT224-CS224 ->  | CU225: =CU224-CT224 ->  | CV225: =CV224-CU224 ->  | CW225: =CW224-CV224 ->  | CX225: =CX224-CW224 ->  | CY225: =CY224-CX224 ->  | CZ225: =CZ224-CY224 ->  | DA225: =DA224-CZ224 ->  | DB225: =DB224-DA224 ->  | DC225: =DC224-DB224 ->  | DD225: =DD224-DC224 ->  | DE225: =DE224-DD224 ->  | DF225: =DF224-DE224 ->  | DG225: =DG224-DF224 ->  | DH225: =DH224-DG224 ->  | DI225: =DI224-DH224 ->  | DJ225: =DJ224-DI224 ->  | DK225: =DK224-DJ224 ->  | DL225: =DL224-DK224 ->  | DM225: =DM224-DL224 ->  | DN225: =DN224-DM224 ->  | DO225: =DO224-DN224 ->  | DP225: =DP224-DO224 ->  | DQ225: =DQ224-DP224 ->  | DR225: =DR224-DQ224 ->  | DS225: =DS224-DR224 ->  | DT225: =DT224-DS224 ->  | DU225: =DU224-DT224 ->  | DV225: =DV224-DU224 ->  | DW225: =DW224-DV224 ->  | DX225: =DX224-DW224 ->  | DY225: =DY224-DX224 ->  | DZ225: =DZ224-DY224 ->  | EA225: =EA224-DZ224 ->  | EB225: =EB224-EA224 ->  | EC225: =EC224-EB224 ->  | ED225: =ED224-EC224 ->  | EE225: =EE224-ED224 ->  | EF225: =EF224-EE224 ->  | EG225: =EG224-EF224 ->  | EH225: =EH224-EG224 ->  | EI225: =EI224-EH224 ->  | EJ225: =EJ224-EI224 ->  | EK225: =EK224-EJ224 ->  | EL225: =EL224-EK224 ->  | EM225: =EM224-EL224 ->  | EN225: =EN224-EM224 ->  | EO225: =EO224-EN224 ->  | EP225: =EP224-EO224 ->  | EQ225: =EQ224-EP224 ->  | ER225: =ER224-EQ224 ->  | ES225: =ES224-ER224 ->  | ET225: =ET224-ES224 ->  | EU225: =EU224-ET224 ->  | EV225: =EV224-EU224 -> 
A226: Median | B226: =MEDIAN(B1:B206) ->  | C226: =MEDIAN(C1:C206) ->  | BO226: =MEDIAN(BO1:BO206) ->  | EA226: =MEDIAN(EA1:EA206) -> 
A227: delta-Median | C227: =C226-B226 ->  | D227: =D226-C226 ->  | E227: =E226-D226 ->  | F227: =F226-E226 ->  | G227: =G226-F226 ->  | H227: =H226-G226 ->  | I227: =I226-H226 ->  | J227: =J226-I226 ->  | K227: =K226-J226 ->  | L227: =L226-K226 ->  | M227: =M226-L226 ->  | N227: =N226-M226 ->  | O227: =O226-N226 ->  | P227: =P226-O226 ->  | Q227: =Q226-P226 ->  | R227: =R226-Q226 ->  | S227: =S226-R226 ->  | T227: =T226-S226 ->  | U227: =U226-T226 ->  | V227: =V226-U226 ->  | W227: =W226-V226 ->  | X227: =X226-W226 ->  | Y227: =Y226-X226 ->  | Z227: =Z226-Y226 ->  | AA227: =AA226-Z226 ->  | AB227: =AB226-AA226 ->  | AC227: =AC226-AB226 ->  | AD227: =AD226-AC226 ->  | AE227: =AE226-AD226 ->  | AF227: =AF226-AE226 ->  | AG227: =AG226-AF226 ->  | AH227: =AH226-AG226 ->  | AI227: =AI226-AH226 ->  | AJ227: =AJ226-AI226 ->  | AK227: =AK226-AJ226 ->  | AL227: =AL226-AK226 ->  | AM227: =AM226-AL226 ->  | AN227: =AN226-AM226 ->  | AO227: =AO226-AN226 ->  | AP227: =AP226-AO226 ->  | AQ227: =AQ226-AP226 ->  | AR227: =AR226-AQ226 ->  | AS227: =AS226-AR226 ->  | AT227: =AT226-AS226 ->  | AU227: =AU226-AT226 ->  | AV227: =AV226-AU226 ->  | AW227: =AW226-AV226 ->  | AX227: =AX226-AW226 ->  | AY227: =AY226-AX226 ->  | AZ227: =AZ226-AY226 ->  | BA227: =BA226-AZ226 ->  | BB227: =BB226-BA226 ->  | BC227: =BC226-BB226 ->  | BD227: =BD226-BC226 ->  | BE227: =BE226-BD226 ->  | BF227: =BF226-BE226 ->  | BG227: =BG226-BF226 ->  | BH227: =BH226-BG226 ->  | BI227: =BI226-BH226 ->  | BJ227: =BJ226-BI226 ->  | BK227: =BK226-BJ226 ->  | BL227: =BL226-BK226 ->  | BM227: =BM226-BL226 ->  | BN227: =BN226-BM226 ->  | BO227: =BO226-BN226 ->  | BP227: =BP226-BO226 ->  | BQ227: =BQ226-BP226 ->  | BR227: =BR226-BQ226 ->  | BS227: =BS226-BR226 ->  | BT227: =BT226-BS226 ->  | BU227: =BU226-BT226 ->  | BV227: =BV226-BU226 ->  | BW227: =BW226-BV226 ->  | BX227: =BX226-BW226 ->  | BY227: =BY226-BX226 ->  | BZ227: =BZ226-BY226 ->  | CA227: =CA226-BZ226 ->  | CB227: =CB226-CA226 ->  | CC227: =CC226-CB226 ->  | CD227: =CD226-CC226 ->  | CE227: =CE226-CD226 ->  | CF227: =CF226-CE226 ->  | CG227: =CG226-CF226 ->  | CH227: =CH226-CG226 ->  | CI227: =CI226-CH226 ->  | CJ227: =CJ226-CI226 ->  | CK227: =CK226-CJ226 ->  | CL227: =CL226-CK226 ->  | CM227: =CM226-CL226 ->  | CN227: =CN226-CM226 ->  | CO227: =CO226-CN226 ->  | CP227: =CP226-CO226 ->  | CQ227: =CQ226-CP226 ->  | CR227: =CR226-CQ226 ->  | CS227: =CS226-CR226 ->  | CT227: =CT226-CS226 ->  | CU227: =CU226-CT226 ->  | CV227: =CV226-CU226 ->  | CW227: =CW226-CV226 ->  | CX227: =CX226-CW226 ->  | CY227: =CY226-CX226 ->  | CZ227: =CZ226-CY226 ->  | DA227: =DA226-CZ226 ->  | DB227: =DB226-DA226 ->  | DC227: =DC226-DB226 ->  | DD227: =DD226-DC226 ->  | DE227: =DE226-DD226 ->  | DF227: =DF226-DE226 ->  | DG227: =DG226-DF226 ->  | DH227: =DH226-DG226 ->  | DI227: =DI226-DH226 ->  | DJ227: =DJ226-DI226 ->  | DK227: =DK226-DJ226 ->  | DL227: =DL226-DK226 ->  | DM227: =DM226-DL226 ->  | DN227: =DN226-DM226 ->  | DO227: =DO226-DN226 ->  | DP227: =DP226-DO226 ->  | DQ227: =DQ226-DP226 ->  | DR227: =DR226-DQ226 ->  | DS227: =DS226-DR226 ->  | DT227: =DT226-DS226 ->  | DU227: =DU226-DT226 ->  | DV227: =DV226-DU226 ->  | DW227: =DW226-DV226 ->  | DX227: =DX226-DW226 ->  | DY227: =DY226-DX226 ->  | DZ227: =DZ226-DY226 ->  | EA227: =EA226-DZ226 ->  | EB227: =EB226-EA226 ->  | EC227: =EC226-EB226 ->  | ED227: =ED226-EC226 ->  | EE227: =EE226-ED226 ->  | EF227: =EF226-EE226 ->  | EG227: =EG226-EF226 ->  | EH227: =EH226-EG226 ->  | EI227: =EI226-EH226 ->  | EJ227: =EJ226-EI226 ->  | EK227: =EK226-EJ226 ->  | EL227: =EL226-EK226 ->  | EM227: =EM226-EL226 ->  | EN227: =EN226-EM226 ->  | EO227: =EO226-EN226 ->  | EP227: =EP226-EO226 ->  | EQ227: =EQ226-EP226 ->  | ER227: =ER226-EQ226 ->  | ES227: =ES226-ER226 ->  | ET227: =ET226-ES226 ->  | EU227: =EU226-ET226 ->  | EV227: =EV226-EU226 -> 
A228: Mode | B228: =MODE(B1:B206) ->  | C228: =MODE(C1:C206) ->  | BO228: =MODE(BO1:BO206) ->  | EA228: =MODE(EA1:EA206) -> 
A229: Minimum | B229: =MIN(B1:B206) -> 0 | C229: =MIN(C1:C206) -> 0 | D229: 0 | E229: 0 | F229: 0 | G229: 0 | H229: 0 | I229: 0 | J229: 0 | K229: 0 | L229: 0 | M229: 0 | N229: 0 | O229: 0 | P229: 0 | Q229: 0 | R229: 0 | S229: 0 | T229: 0 | U229: 0 | V229: 0 | W229: 0 | X229: 0 | Y229: 0 | Z229: 0 | AA229: 0 | AB229: 0 | AC229: 0 | AD229: 0 | AE229: 0 | AF229: 0 | AG229: 0 | AH229: 0 | AI229: 0 | AJ229: 0 | AK229: 0 | AL229: 0 | AM229: 0 | AN229: 0 | AO229: 0 | AP229: 0 | AQ229: 0 | AR229: 0 | AS229: 0 | AT229: 0 | AU229: 0 | AV229: 0 | AW229: 0 | AX229: 0 | AY229: 0 | AZ229: 0 | BA229: 0 | BB229: 0 | BC229: 0 | BD229: 0 | BE229: 0 | BF229: 0 | BG229: 0 | BH229: 0 | BI229: 0 | BJ229: 0 | BK229: 0 | BL229: 0 | BM229: 0 | BN229: 0 | BO229: =MIN(BO1:BO206) -> 0 | BP229: 0 | BQ229: 0 | BR229: 0 | BS229: 0 | BT229: 0 | BU229: 0 | BV229: 0 | BW229: 0 | BX229: 0 | BY229: 0 | BZ229: 0 | CA229: 0 | CB229: 0 | CC229: 0 | CD229: 0 | CE229: 0 | CF229: 0 | CG229: 0 | CH229: 0 | CI229: 0 | CJ229: 0 | CK229: 0 | CL229: 0 | CM229: 0 | CN229: 0 | CO229: 0 | CP229: 0 | CQ229: 0 | CR229: 0 | CS229: 0 | CT229: 0 | CU229: 0 | CV229: 0 | CW229: 0 | CX229: 0 | CY229: 0 | CZ229: 0 | DA229: 0 | DB229: 0 | DC229: 0 | DD229: 0 | DE229: 0 | DF229: 0 | DG229: 0 | DH229: 0 | DI229: 0 | DJ229: 0 | DK229: 0 | DL229: 0 | DM229: 0 | DN229: 0 | DO229: 0 | DP229: 0 | DQ229: 0 | DR229: 0 | DS229: 0 | DT229: 0 | DU229: 0 | DV229: 0 | DW229: 0 | DX229: 0 | DY229: 0 | DZ229: 0 | EA229: =MIN(EA1:EA206) -> 0 | EB229: 0 | EC229: 0 | ED229: 0 | EE229: 0 | EF229: 0 | EG229: 0 | EH229: 0 | EI229: 0 | EJ229: 0 | EK229: 0 | EL229: 0 | EM229: 0 | EN229: 0 | EO229: 0 | EP229: 0 | EQ229: 0 | ER229: 0 | ES229: 0 | ET229: 0 | EU229: 0 | EV229: 0
A230: # @ Minimum | B230: =COUNTIF(B1:B206,"<="&B229) -> 0 | C230: =COUNTIF(C1:C206,"<="&C229) -> 0 | D230: 0 | E230: 0 | F230: 0 | G230: 0 | H230: 0 | I230: 0 | J230: 0 | K230: 0 | L230: 0 | M230: 0 | N230: 0 | O230: 0 | P230: 0 | Q230: 0 | R230: 0 | S230: 0 | T230: 0 | U230: 0 | V230: 0 | W230: 0 | X230: 0 | Y230: 0 | Z230: 0 | AA230: 0 | AB230: 0 | AC230: 0 | AD230: 0 | AE230: 0 | AF230: 0 | AG230: 0 | AH230: 0 | AI230: 0 | AJ230: 0 | AK230: 0 | AL230: 0 | AM230: 0 | AN230: 0 | AO230: 0 | AP230: 0 | AQ230: 0 | AR230: 0 | AS230: 0 | AT230: 0 | AU230: 0 | AV230: 0 | AW230: 0 | AX230: 0 | AY230: 0 | AZ230: 0 | BA230: 0 | BB230: 0 | BC230: 0 | BD230: 0 | BE230: 0 | BF230: 0 | BG230: 0 | BH230: 0 | BI230: 0 | BJ230: 0 | BK230: 0 | BL230: 0 | BM230: 0 | BN230: 0 | BO230: =COUNTIF(BO1:BO206,"<="&BO229) -> 0 | BP230: 0 | BQ230: 0 | BR230: 0 | BS230: 0 | BT230: 0 | BU230: 0 | BV230: 0 | BW230: 0 | BX230: 0 | BY230: 0 | BZ230: 0 | CA230: 0 | CB230: 0 | CC230: 0 | CD230: 0 | CE230: 0 | CF230: 0 | CG230: 0 | CH230: 0 | CI230: 0 | CJ230: 0 | CK230: 0 | CL230: 0 | CM230: 0 | CN230: 0 | CO230: 0 | CP230: 0 | CQ230: 0 | CR230: 0 | CS230: 0 | CT230: 0 | CU230: 0 | CV230: 0 | CW230: 0 | CX230: 0 | CY230: 0 | CZ230: 0 | DA230: 0 | DB230: 0 | DC230: 0 | DD230: 0 | DE230: 0 | DF230: 0 | DG230: 0 | DH230: 0 | DI230: 0 | DJ230: 0 | DK230: 0 | DL230: 0 | DM230: 0 | DN230: 0 | DO230: 0 | DP230: 0 | DQ230: 0 | DR230: 0 | DS230: 0 | DT230: 0 | DU230: 0 | DV230: 0 | DW230: 0 | DX230: 0 | DY230: 0 | DZ230: 0 | EA230: =COUNTIF(EA1:EA206,"<="&EA229) -> 0 | EB230: 0 | EC230: 0 | ED230: 0 | EE230: 0 | EF230: 0 | EG230: 0 | EH230: 0 | EI230: 0 | EJ230: 0 | EK230: 0 | EL230: 0 | EM230: 0 | EN230: 0 | EO230: 0 | EP230: 0 | EQ230: 0 | ER230: 0 | ES230: 0 | ET230: 0 | EU230: 0 | EV230: 0
A231: % of Total | B231: =B230/206 -> 0 | C231: =C230/206 -> 0 | D231: 0 | E231: 0 | F231: 0 | G231: 0 | H231: 0 | I231: 0 | J231: 0 | K231: 0 | L231: 0 | M231: 0 | N231: 0 | O231: 0 | P231: 0 | Q231: 0 | R231: 0 | S231: 0 | T231: 0 | U231: 0 | V231: 0 | W231: 0 | X231: 0 | Y231: 0 | Z231: 0 | AA231: 0 | AB231: 0 | AC231: 0 | AD231: 0 | AE231: 0 | AF231: 0 | AG231: 0 | AH231: 0 | AI231: 0 | AJ231: 0 | AK231: 0 | AL231: 0 | AM231: 0 | AN231: 0 | AO231: 0 | AP231: 0 | AQ231: 0 | AR231: 0 | AS231: 0 | AT231: 0 | AU231: 0 | AV231: 0 | AW231: 0 | AX231: 0 | AY231: 0 | AZ231: 0 | BA231: 0 | BB231: 0 | BC231: 0 | BD231: 0 | BE231: 0 | BF231: 0 | BG231: 0 | BH231: 0 | BI231: 0 | BJ231: 0 | BK231: 0 | BL231: 0 | BM231: 0 | BN231: 0 | BO231: =BO230/206 -> 0 | BP231: 0 | BQ231: 0 | BR231: 0 | BS231: 0 | BT231: 0 | BU231: 0 | BV231: 0 | BW231: 0 | BX231: 0 | BY231: 0 | BZ231: 0 | CA231: 0 | CB231: 0 | CC231: 0 | CD231: 0 | CE231: 0 | CF231: 0 | CG231: 0 | CH231: 0 | CI231: 0 | CJ231: 0 | CK231: 0 | CL231: 0 | CM231: 0 | CN231: 0 | CO231: 0 | CP231: 0 | CQ231: 0 | CR231: 0 | CS231: 0 | CT231: 0 | CU231: 0 | CV231: 0 | CW231: 0 | CX231: 0 | CY231: 0 | CZ231: 0 | DA231: 0 | DB231: 0 | DC231: 0 | DD231: 0 | DE231: 0 | DF231: 0 | DG231: 0 | DH231: 0 | DI231: 0 | DJ231: 0 | DK231: 0 | DL231: 0 | DM231: 0 | DN231: 0 | DO231: 0 | DP231: 0 | DQ231: 0 | DR231: 0 | DS231: 0 | DT231: 0 | DU231: 0 | DV231: 0 | DW231: 0 | DX231: 0 | DY231: 0 | DZ231: 0 | EA231: =EA230/206 -> 0 | EB231: 0 | EC231: 0 | ED231: 0 | EE231: 0 | EF231: 0 | EG231: 0 | EH231: 0 | EI231: 0 | EJ231: 0 | EK231: 0 | EL231: 0 | EM231: 0 | EN231: 0 | EO231: 0 | EP231: 0 | EQ231: 0 | ER231: 0 | ES231: 0 | ET231: 0 | EU231: 0 | EV231: 0
A232: # > Mean | B232: =COUNTIF(B1:B206,">"&B224) -> 0 | C232: =COUNTIF(C1:C206,">"&C224) -> 0 | D232: 0 | E232: 0 | F232: 0 | G232: 0 | H232: 0 | I232: 0 | J232: 0 | K232: 0 | L232: 0 | M232: 0 | N232: 0 | O232: 0 | P232: 0 | Q232: 0 | R232: 0 | S232: 0 | T232: 0 | U232: 0 | V232: 0 | W232: 0 | X232: 0 | Y232: 0 | Z232: 0 | AA232: 0 | AB232: 0 | AC232: 0 | AD232: 0 | AE232: 0 | AF232: 0 | AG232: 0 | AH232: 0 | AI232: 0 | AJ232: 0 | AK232: 0 | AL232: 0 | AM232: 0 | AN232: 0 | AO232: 0 | AP232: 0 | AQ232: 0 | AR232: 0 | AS232: 0 | AT232: 0 | AU232: 0 | AV232: 0 | AW232: 0 | AX232: 0 | AY232: 0 | AZ232: 0 | BA232: 0 | BB232: 0 | BC232: 0 | BD232: 0 | BE232: 0 | BF232: 0 | BG232: 0 | BH232: 0 | BI232: 0 | BJ232: 0 | BK232: 0 | BL232: 0 | BM232: 0 | BN232: 0 | BO232: =COUNTIF(BO1:BO206,">"&BO224) -> 0 | BP232: 0 | BQ232: 0 | BR232: 0 | BS232: 0 | BT232: 0 | BU232: 0 | BV232: 0 | BW232: 0 | BX232: 0 | BY232: 0 | BZ232: 0 | CA232: 0 | CB232: 0 | CC232: 0 | CD232: 0 | CE232: 0 | CF232: 0 | CG232: 0 | CH232: 0 | CI232: 0 | CJ232: 0 | CK232: 0 | CL232: 0 | CM232: 0 | CN232: 0 | CO232: 0 | CP232: 0 | CQ232: 0 | CR232: 0 | CS232: 0 | CT232: 0 | CU232: 0 | CV232: 0 | CW232: 0 | CX232: 0 | CY232: 0 | CZ232: 0 | DA232: 0 | DB232: 0 | DC232: 0 | DD232: 0 | DE232: 0 | DF232: 0 | DG232: 0 | DH232: 0 | DI232: 0 | DJ232: 0 | DK232: 0 | DL232: 0 | DM232: 0 | DN232: 0 | DO232: 0 | DP232: 0 | DQ232: 0 | DR232: 0 | DS232: 0 | DT232: 0 | DU232: 0 | DV232: 0 | DW232: 0 | DX232: 0 | DY232: 0 | DZ232: 0 | EA232: =COUNTIF(EA1:EA206,">"&EA224) -> 0 | EB232: 0 | EC232: 0 | ED232: 0 | EE232: 0 | EF232: 0 | EG232: 0 | EH232: 0 | EI232: 0 | EJ232: 0 | EK232: 0 | EL232: 0 | EM232: 0 | EN232: 0 | EO232: 0 | EP232: 0 | EQ232: 0 | ER232: 0 | ES232: 0 | ET232: 0 | EU232: 0 | EV232: 0
A233: % of Total | B233: =B232/206 -> 0 | C233: =C232/206 -> 0 | D233: 0 | E233: 0 | F233: 0 | G233: 0 | H233: 0 | I233: 0 | J233: 0 | K233: 0 | L233: 0 | M233: 0 | N233: 0 | O233: 0 | P233: 0 | Q233: 0 | R233: 0 | S233: 0 | T233: 0 | U233: 0 | V233: 0 | W233: 0 | X233: 0 | Y233: 0 | Z233: 0 | AA233: 0 | AB233: 0 | AC233: 0 | AD233: 0 | AE233: 0 | AF233: 0 | AG233: 0 | AH233: 0 | AI233: 0 | AJ233: 0 | AK233: 0 | AL233: 0 | AM233: 0 | AN233: 0 | AO233: 0 | AP233: 0 | AQ233: 0 | AR233: 0 | AS233: 0 | AT233: 0 | AU233: 0 | AV233: 0 | AW233: 0 | AX233: 0 | AY233: 0 | AZ233: 0 | BA233: 0 | BB233: 0 | BC233: 0 | BD233: 0 | BE233: 0 | BF233: 0 | BG233: 0 | BH233: 0 | BI233: 0 | BJ233: 0 | BK233: 0 | BL233: 0 | BM233: 0 | BN233: 0 | BO233: =BO232/206 -> 0 | BP233: 0 | BQ233: 0 | BR233: 0 | BS233: 0 | BT233: 0 | BU233: 0 | BV233: 0 | BW233: 0 | BX233: 0 | BY233: 0 | BZ233: 0 | CA233: 0 | CB233: 0 | CC233: 0 | CD233: 0 | CE233: 0 | CF233: 0 | CG233: 0 | CH233: 0 | CI233: 0 | CJ233: 0 | CK233: 0 | CL233: 0 | CM233: 0 | CN233: 0 | CO233: 0 | CP233: 0 | CQ233: 0 | CR233: 0 | CS233: 0 | CT233: 0 | CU233: 0 | CV233: 0 | CW233: 0 | CX233: 0 | CY233: 0 | CZ233: 0 | DA233: 0 | DB233: 0 | DC233: 0 | DD233: 0 | DE233: 0 | DF233: 0 | DG233: 0 | DH233: 0 | DI233: 0 | DJ233: 0 | DK233: 0 | DL233: 0 | DM233: 0 | DN233: 0 | DO233: 0 | DP233: 0 | DQ233: 0 | DR233: 0 | DS233: 0 | DT233: 0 | DU233: 0 | DV233: 0 | DW233: 0 | DX233: 0 | DY233: 0 | DZ233: 0 | EA233: =EA232/206 -> 0 | EB233: 0 | EC233: 0 | ED233: 0 | EE233: 0 | EF233: 0 | EG233: 0 | EH233: 0 | EI233: 0 | EJ233: 0 | EK233: 0 | EL233: 0 | EM233: 0 | EN233: 0 | EO233: 0 | EP233: 0 | EQ233: 0 | ER233: 0 | ES233: 0 | ET233: 0 | EU233: 0 | EV233: 0
A234: # in between | B234: =COUNT(B1:B206)-B230-B232 -> 0 | C234: =COUNT(C1:C206)-C230-C232 -> 0 | D234: 0 | E234: 0 | F234: 0 | G234: 0 | H234: 0 | I234: 0 | J234: 0 | K234: 0 | L234: 0 | M234: 0 | N234: 0 | O234: 0 | P234: 0 | Q234: 0 | R234: 0 | S234: 0 | T234: 0 | U234: 0 | V234: 0 | W234: 0 | X234: 0 | Y234: 0 | Z234: 0 | AA234: 0 | AB234: 0 | AC234: 0 | AD234: 0 | AE234: 0 | AF234: 0 | AG234: 0 | AH234: 0 | AI234: 0 | AJ234: 0 | AK234: 0 | AL234: 0 | AM234: 0 | AN234: 0 | AO234: 0 | AP234: 0 | AQ234: 0 | AR234: 0 | AS234: 0 | AT234: 0 | AU234: 0 | AV234: 0 | AW234: 0 | AX234: 0 | AY234: 0 | AZ234: 0 | BA234: 0 | BB234: 0 | BC234: 0 | BD234: 0 | BE234: 0 | BF234: 0 | BG234: 0 | BH234: 0 | BI234: 0 | BJ234: 0 | BK234: 0 | BL234: 0 | BM234: 0 | BN234: 0 | BO234: =COUNT(BO1:BO206)-BO230-BO232 -> 0 | BP234: 0 | BQ234: 0 | BR234: 0 | BS234: 0 | BT234: 0 | BU234: 0 | BV234: 0 | BW234: 0 | BX234: 0 | BY234: 0 | BZ234: 0 | CA234: 0 | CB234: 0 | CC234: 0 | CD234: 0 | CE234: 0 | CF234: 0 | CG234: 0 | CH234: 0 | CI234: 0 | CJ234: 0 | CK234: 0 | CL234: 0 | CM234: 0 | CN234: 0 | CO234: 0 | CP234: 0 | CQ234: 0 | CR234: 0 | CS234: 0 | CT234: 0 | CU234: 0 | CV234: 0 | CW234: 0 | CX234: 0 | CY234: 0 | CZ234: 0 | DA234: 0 | DB234: 0 | DC234: 0 | DD234: 0 | DE234: 0 | DF234: 0 | DG234: 0 | DH234: 0 | DI234: 0 | DJ234: 0 | DK234: 0 | DL234: 0 | DM234: 0 | DN234: 0 | DO234: 0 | DP234: 0 | DQ234: 0 | DR234: 0 | DS234: 0 | DT234: 0 | DU234: 0 | DV234: 0 | DW234: 0 | DX234: 0 | DY234: 0 | DZ234: 0 | EA234: =COUNT(EA1:EA206)-EA230-EA232 -> 0 | EB234: 0 | EC234: 0 | ED234: 0 | EE234: 0 | EF234: 0 | EG234: 0 | EH234: 0 | EI234: 0 | EJ234: 0 | EK234: 0 | EL234: 0 | EM234: 0 | EN234: 0 | EO234: 0 | EP234: 0 | EQ234: 0 | ER234: 0 | ES234: 0 | ET234: 0 | EU234: 0 | EV234: 0
A235: % of Total | B235: =B234/206 -> 0 | C235: =C234/206 -> 0 | D235: 0 | E235: 0 | F235: 0 | G235: 0 | H235: 0 | I235: 0 | J235: 0 | K235: 0 | L235: 0 | M235: 0 | N235: 0 | O235: 0 | P235: 0 | Q235: 0 | R235: 0 | S235: 0 | T235: 0 | U235: 0 | V235: 0 | W235: 0 | X235: 0 | Y235: 0 | Z235: 0 | AA235: 0 | AB235: 0 | AC235: 0 | AD235: 0 | AE235: 0 | AF235: 0 | AG235: 0 | AH235: 0 | AI235: 0 | AJ235: 0 | AK235: 0 | AL235: 0 | AM235: 0 | AN235: 0 | AO235: 0 | AP235: 0 | AQ235: 0 | AR235: 0 | AS235: 0 | AT235: 0 | AU235: 0 | AV235: 0 | AW235: 0 | AX235: 0 | AY235: 0 | AZ235: 0 | BA235: 0 | BB235: 0 | BC235: 0 | BD235: 0 | BE235: 0 | BF235: 0 | BG235: 0 | BH235: 0 | BI235: 0 | BJ235: 0 | BK235: 0 | BL235: 0 | BM235: 0 | BN235: 0 | BO235: =BO234/206 -> 0 | BP235: 0 | BQ235: 0 | BR235: 0 | BS235: 0 | BT235: 0 | BU235: 0 | BV235: 0 | BW235: 0 | BX235: 0 | BY235: 0 | BZ235: 0 | CA235: 0 | CB235: 0 | CC235: 0 | CD235: 0 | CE235: 0 | CF235: 0 | CG235: 0 | CH235: 0 | CI235: 0 | CJ235: 0 | CK235: 0 | CL235: 0 | CM235: 0 | CN235: 0 | CO235: 0 | CP235: 0 | CQ235: 0 | CR235: 0 | CS235: 0 | CT235: 0 | CU235: 0 | CV235: 0 | CW235: 0 | CX235: 0 | CY235: 0 | CZ235: 0 | DA235: 0 | DB235: 0 | DC235: 0 | DD235: 0 | DE235: 0 | DF235: 0 | DG235: 0 | DH235: 0 | DI235: 0 | DJ235: 0 | DK235: 0 | DL235: 0 | DM235: 0 | DN235: 0 | DO235: 0 | DP235: 0 | DQ235: 0 | DR235: 0 | DS235: 0 | DT235: 0 | DU235: 0 | DV235: 0 | DW235: 0 | DX235: 0 | DY235: 0 | DZ235: 0 | EA235: =EA234/206 -> 0 | EB235: 0 | EC235: 0 | ED235: 0 | EE235: 0 | EF235: 0 | EG235: 0 | EH235: 0 | EI235: 0 | EJ235: 0 | EK235: 0 | EL235: 0 | EM235: 0 | EN235: 0 | EO235: 0 | EP235: 0 | EQ235: 0 | ER235: 0 | ES235: 0 | ET235: 0 | EU235: 0 | EV235: 0

Sheet MasterFacilityData (hidden)
A1: Facility ID | B1: Primary Name | C1: Non-EGU or EGU? | D1: PM ALW | E1: PM ACT | F1: SO2 ALW | G1: SO2 ACT | H1: VOC ALW | I1: VOC ACT | J1: NOX ALW | K1: NOX ACT | L1: HAP NOstd ALW | M1: HAP NOstd ACT | N1: HAP std ALW | O1: HAP std ACT | P1: NSPS ALW | Q1: NSPS ACT | R1: TOTAL ALW | S1: TOTAL ACT | Y1: Billing Mode
A2: 01-0009 | B2: Tennessee Valley Authority - Bull Run Fossil Plant | C2: EGU | E2: 116 | G2: 199 | I2: 20.2 | K2: 794 | M2: 6.8 | R2: =SUM(D2+F2+H2+J2+L2+N2+P2) -> 0 | S2: =SUM(E2,G2,I2,K2,M2,O2,Q2) -> 1136 | Y2: Actuals
A3: 01-0020 | B3: US Department of Energy - Oak Ridge Y-12 National Security Complex | C3: Non-EGU | D3: 168.57 | E3: 3.4 | F3: 0 | G3: 0.32 | H3: 59.23 | I3: 3.07 | J3: 165.48 | K3: 15.41 | L3: 48 | M3: 14.43 | N3: 2 | O3: 0.00265 | P3: 0 | Q3: 0 | R3: 443.28 | S3: 36.63265 | Y3: Mixed
A4: 01-0114 | B4: The Carlstar Group LLC | C4: Non-EGU | D4: 61.42 | G4: 0.075 | I4: 70.12 | K4: 14.48 | R4: 61.42 | S4: 84.675 | Y4: Mixed
A5: 01-0170 | B5: Chestnut Ridge Landfill and Recycling Center | C5: Non-EGU | E5: 7.47 | G5: 13.13 | I5: 20.96 | K5: 69.09 | R5: 0 | S5: 110.65 | Y5: Actuals
A6: 03-0045 | B6: West Camden Sanitary Landfill | C6: Non-EGU | E6: 8.5 | G6: 29.87 | I6: 19.94 | K6: 48.18 | R6: 0 | S6: 106.49 | Y6: Actuals
A7: 05-0008 | B7: Arconic Inc. | C7: Non-EGU | E7: 110.69 | G7: 5.93 | I7: 204.4 | K7: 158.82 | M7: 6.637 | O7: 56.2147 | R7: 0 | S7: 542.6917 | Y7: Actuals
A8: 05-0011 | B8: Alcoa/Maryville/Blount County Landfill | C8: Non-EGU | E8: 18.38 | I8: 6.03 | K8: 1.14 | M8: 0.618 | R8: 0 | S8: 26.168 | Y8: Actuals
A9: 05-0183 | B9: Denso Manufacturing Tennessee, Inc. | C9: Non-EGU | D9: 15.29 | F9: 0 | H9: 112 | J9: 0 | N9: 24.95 | P9: 0.2 | R9: 152.44 | S9: 0 | Y9: Allowables
A10: 05-0199 | B10: Skier's Choice, Inc | C10: Non-EGU | D10: 45.2 | F10: 0 | H10: 245 | J10: 0 | N10: 0 | P10: 0 | R10: 290.2 | S10: 0 | Y10: Allowables
A11: 06-0014 | B11: Olin Corporation | C11: Non-EGU | D11: 12.9 | F11: 33.5 | H11: 6.75 | J11: 163.2 | N11: 3.6 | P11: 4.3 | R11: 224.25 | S11: 0 | Y11: Allowables
A12: 06-0085 | B12: Duracell Manufacturing, Inc. | C12: Non-EGU | D12: 65.6 | F12: 0 | H12: 77.4 | J12: 0 | N12: 0 | P12: 0 | R12: 143 | S12: 0 | Y12: Allowables
A13: 06-0205 | B13: Bradley County Landfill (Bradley County Government) | C13: Non-EGU | I13: 15.85 | Q13: 9.37 | R13: 0 | S13: 25.22 | Y13: Actuals
A14: 06-0215 | B14: Innovative Water Care, LLC | C14: Non-EGU | D14: 234.8 | F14: 0.2 | H14: 1.5 | J14: 39.5 | N14: 40 | P14: 0 | R14: 316 | S14: 0 | Y14: Allowables
A15: 09-0012 | B15: GrÃ¤nges Americas Inc. | C15: Non-EGU | D15: 102.8 | F15: 254.7 | H15: 2002.61 | J15: 224.5 | N15: 24.9 | P15: 0 | R15: 2609.51 | S15: 0 | Y15: Allowables
A16: 11-0023 | B16: State Industries Incorporated | C16: Non-EGU | D16: 133.4 | E16: 1 | F16: 25.8 | H16: 4.1 | I16: 253 | J16: 77.9 | R16: 241.2 | S16: 254 | Y16: Mixed
A17: 11-0039 | B17: Arcosa Marine Products, Inc. [Plant No. 296] | C17: Non-EGU | D17: 28.6 | F17: 0 | H17: 221 | J17: 0 | N17: 0 | P17: 0 | R17: 249.6 | S17: 0 | Y17: Allowables
A18: 13-0083 | B18: SumiRiko Tennessee, Inc. - Tazewell | C18: Non-EGU | E18: 12.04 | I18: 220.78 | R18: 0 | S18: 232.82 | Y18: Actuals
A19: 14-0022 | B19: Honest Abe Log Homes, Inc. | C19: Non-EGU | D19: 273.47 | F19: 22.95 | H19: 2.15 | J19: 28.03 | N19: 0 | P19: 0 | R19: 326.6 | S19: 0 | Y19: Allowables
A20: 15-0005 | B20: SI Group, Inc. | C20: Non-EGU | D20: 11.92 | F20: 28.23 | H20: 35.03 | J20: 61.23 | N20: 0 | P20: 0 | R20: 136.41 | S20: 0 | Y20: Allowables
A21: 15-0009 | B21: Commercial Furniture Group | C21: Non-EGU | D21: 100.73 | F21: 0 | H21: 107 | J21: 0 | N21: 0 | P21: 0 | R21: 207.73 | S21: 0 | Y21: Allowables
A22: 15-0020 | B22: Sonoco Products Company | C22: Non-EGU | E22: 2.02 | G22: 0.16 | I22: 2.689 | K22: 26.6 | O22: 2.43 | R22: 0 | S22: 33.899 | Y22: Actuals
A23: 16-0010 | B23: Arnold Engineering Development Complex | C23: Non-EGU | E23: 4.627 | G23: 2.729 | I23: 12.043 | K23: 59.154 | R23: 0 | S23: 78.553 | Y23: Actuals
A24: 16-0067 | B24: Batesville Manufacturing, Inc. | C24: Non-EGU | E24: 9.493 | I24: 196.64 | M24: 31.34 | R24: 0 | S24: 237.473 | Y24: Actuals
A25: 16-0113 | B25: Kasai North America, Inc. | C25: Non-EGU | D25: 41 | F25: 0 | H25: 225 | J25: 6 | N25: 0 | P25: 0 | R25: 272 | S25: 0 | Y25: Allowables
A26: 16-0123 | B26: Sonoco Protective Solutions, Inc. | C26: Non-EGU | E26: 0.69 | G26: 0.05 | I26: 56.2 | K26: 9.11 | R26: 0 | S26: 66.05 | Y26: Actuals
A27: 18-0090 | B27: Crossville Hardwoods, LLC | C27: Non-EGU | E27: 102.388 | G27: 1.456 | I27: 6.632 | K27: 28.549 | R27: 0 | S27: 139.025 | Y27: Actuals
A28: 18-0120 | B28: StonePeak Ceramics, Inc. | C28: Non-EGU | D28: 313.67 | F28: 196.97 | H28: 79.38 | J28: 255.13 | N28: 18.76 | P28: 0 | R28: 863.91 | S28: 0 | Y28: Allowables
A29: 20-0052 | B29: Decatur County Municipal Solid Waste Landfill | C29: Non-EGU | I29: 16.3 | R29: 0 | S29: 16.3 | Y29: Actuals
A30: 21-0031 | B30: Federal-Mogul Motorparts | C30: Non-EGU | E30: 1.68 | G30: 1.93 | I30: 53.14 | K30: 13.04 | O30: 5.34 | R30: 0 | S30: 75.13 | Y30: Actuals
A31: 22-0055 | B31: Ebbtide Holdings, LLC | C31: Non-EGU | R31: 0 | S31: 0 | Y31: Mixed
A32: 22-0072 | B32: Nemak USA, Inc. | C32: Non-EGU | E32: 97.19 | G32: 0.2 | I32: 117.12 | K32: 30.42 | M32: 0.08 | O32: 0.22 | R32: 0 | S32: 245.23 | Y32: Actuals
A33: 22-0112 | B33: Bridgestone APM | C33: Non-EGU | E33: 0.679 | G33: 0.001 | I33: 134.79 | K33: 0.1 | M33: 2.46 | R33: 0 | S33: 138.03 | Y33: Actuals
A34: 22-0177 | B34: Dal-Tile Tennessee LLC dba Dal-Tile Dickson | C34: Non-EGU | E34: 63.5 | G34: 1.2 | I34: 38.4 | K34: 47.1 | M34: 1.6 | P34: 0 | R34: 0 | S34: 151.8 | Y34: Actuals
A35: 23-0092 | B35: Trunkline Gas Company- Dyersburg Compressor Station | C35: Non-EGU | E35: 0.23 | G35: 1.65 | I35: 1.05 | K35: 33.73 | M35: 0.04 | R35: 0 | S35: 36.7 | Y35: Actuals
A36: 23-0120 | B36: SRG Global Coatings, Inc. - Newbern | C36: Non-EGU | D36: 103.5 | F36: 0.44 | H36: 230.2 | J36: 4.4 | N36: 24.9 | P36: 0 | R36: 363.44 | S36: 0 | Y36: Allowables
A37: 23-0182 | B37: Frazier Industrial Company - Dyersburg Facility | C37: Non-EGU | D37: 13.47 | F37: 0.01 | H37: 244 | J37: 0.86 | N37: 0 | P37: 0 | R37: 258.34 | S37: 0 | Y37: Allowables
A38: 24-0080 | B38: Stabilit America, Inc. | C38: Non-EGU | D38: 11.8 | F38: 0 | H38: 50.3 | J38: 9.4 | N38: 0 | P38: 0 | R38: 71.5 | S38: 0 | Y38: Allowables
A39: 26-0079 | B39: Tepro Inc. | C39: Non-EGU | D39: 17.52 | F39: 0 | H39: 130 | J39: 0 | N39: 0 | P39: 0 | R39: 147.52 | S39: 0 | Y39: Allowables
A40: 26-0086 | B40: Tennessee Zanini, Inc. | C40: Non-EGU | E40: 5.4 | I40: 109.1 | M40: 17 | R40: 0 | S40: 131.5 | Y40: Actuals
A41: 26-0131 | B41: CJBBB, Inc. dba Phoenix Boats | C41: Non-EGU | E41: 0.48 | I41: 55.65 | R41: 0 | S41: 56.13 | Y41: Actuals
A42: 27-0100 | B42: Ceco Door Products | C42: Non-EGU | D42: 93.8 | F42: 0.12 | H42: 230.5 | J42: 19.84 | N42: 0 | P42: 0 | R42: 344.26 | S42: 0 | Y42: Allowables
A43: 28-0025 | B43: Magotteaux Incorporated | C43: Non-EGU | D43: 195.8 | F43: 58.5 | H43: 118.2 | J43: 22.4 | N43: 0 | P43: 0 | R43: 394.9 | S43: 0 | Y43: Allowables
A44: 28-0076 | B44: Adient US LLC | C44: Non-EGU | D44: 113.9 | F44: 0 | H44: 285.9 | J44: 0 | N44: 0 | P44: 0 | R44: 399.8 | S44: 0 | Y44: Allowables
A45: 28-0091 | B45: SaarGummi Tennessee, LLC | C45: Non-EGU | D45: 22.2 | F45: 0 | H45: 91.5 | J45: 0 | N45: 0 | P45: 0 | R45: 113.7 | S45: 0 | Y45: Allowables
A46: 30-0001 | B46: Imerys Fused Minerals Greeneville, Inc. | C46: Non-EGU | D46: 244.65 | F46: 0.15 | H46: 1.23 | J46: 41.4 | N46: 0 | P46: 0 | R46: 287.43 | S46: 0 | Y46: Allowables
A47: 30-0132 | B47: Plus Mark, Inc. | C47: Non-EGU | E47: 0.187 | G47: 0.017 | I47: 185.489 | K47: 1.521 | R47: 0 | S47: 187.214 | Y47: Actuals
A48: 30-0136 | B48: Donaldson Company, Inc. | C48: Non-EGU | D48: 18.6 | F48: 0 | H48: 70.5 | J48: 0 | N48: 29.6 | P48: 0 | R48: 118.7 | S48: 0 | Y48: Allowables
A49: 30-0165 | B49: Delfasco, LLC | C49: Non-EGU | D49: 19.7 | F49: 0 | H49: 99.9 | J49: 0 | N49: 0 | P49: 0 | R49: 119.6 | S49: 0 | Y49: Allowables
A50: 30-0166 | B50: SumiRiko Tennessee, Inc. | C50: Non-EGU | E50: 39.12 | G50: 0.0214 | I50: 106.72 | K50: 3.04 | R50: 0 | S50: 148.9014 | Y50: Actuals
A51: 30-0190 | B51: Sea Ray Boats | C51: Non-EGU | D51: 48.4 | F51: 0 | H51: 129 | J51: 0 | N51: 0 | P51: 0 | R51: 177.4 | S51: 0 | Y51: Allowables
A52: 32-0196 | B52: Sonoco Flexible Packaging, Inc. | C52: Non-EGU | I52: 33.649 | R52: 0 | S52: 33.649 | Y52: Actuals
A53: 32-0275 | B53: Trelleborg Coated Systems US, Inc. dba Morristown Facility | C53: Non-EGU | E53: 1.47 | G53: 0.1 | I53: 14.4 | K53: 1.86 | R53: 0 | S53: 17.83 | Y53: Actuals
A54: 34-0014 | B54: Powell Valley Electric Cooperative, Inc. | C54: Non-EGU | E54: 0.069 | G54: 0.14 | I54: 0.1217 | K54: 8.504 | R54: 0 | S54: 8.8347 | Y54: Actuals
A55: 35-0001 | B55: Kilgore Flares Company, LLC | C55: Non-EGU | D55: 55.2 | F55: 0.1 | H55: 82.2 | J55: 2 | N55: 0.7 | P55: 0 | R55: 140.2 | S55: 0 | Y55: Allowables
A56: 35-0004 | B56: Thyssen Elevator Systems, Inc. | C56: Non-EGU | D56: 84.5 | F56: 0 | H56: 398.2 | J56: 1.64 | N56: 0 | P56: 0 | R56: 484.34 | S56: 0 | Y56: Allowables
A57: 35-0006 | B57: Tennessee Gas Pipeline Company, LLC - Compressor Station 71 | C57: Non-EGU | E57: 4.3 | G57: 0.06 | I57: 10.54 | K57: 354.49 | M57: 0.0166 | R57: 0 | S57: 369.4066 | Y57: Actuals
A58: 36-0002 | B58: Packaging Corporation of America | C58: Non-EGU | D58: 463.8 | F58: 1800 | H58: 794.1 | J58: 1665.5 | N58: 184.6 | P58: 199.2 | R58: 5107.2 | S58: 0 | Y58: Allowables
A59: 36-0061 | B59: Tennessee Gas Pipeline Company, LLC - Compressor Station 856 | C59: Non-EGU | E59: 0 | G59: 0 | I59: 0 | K59: 0 | R59: 0 | S59: 0 | Y59: Mixed
A60: 36-0074 | B60: The Praxis Companies, LLC dba American Whirlpool | C60: Non-EGU | D60: 12.7 | F60: 0 | H60: 486 | J60: 0 | N60: 0 | P60: 0 | R60: 498.7 | S60: 0 | Y60: Allowables
A61: 37-0001 | B61: Holliston Holdings, LLC | C61: Non-EGU | E61: 0.843 | G61: 0.081 | I61: 27.833 | K61: 18.46 | M61: 88.129 | R61: 0 | S61: 135.346 | Y61: Actuals
A62: 37-0007 | B62: Tennessee Valley Authority - John Sevier Combined Cycle Plant | C62: EGU | E62: 80 | G62: 11 | I62: 52.9 | K62: 176 | R62: 0 | S62: 319.9 | Y62: Actuals
A63: 37-0026 | B63: AGC Flat Glass North America, Inc. - Greenland Plant | C63: Non-EGU | D63: 213.59 | F63: 582.26 | H63: 117.72 | J63: 2477.26 | N63: 24.75 | P63: 0 | R63: 3415.58 | S63: 0 | Y63: Allowables
A64: 37-0028 | B64: BAE SYSTEMS Ordnance Systems Inc. Holston Army Ammunition Plant | C64: Non-EGU | E64: 49.68 | G64: 1767.63 | I64: 223.18 | K64: 356.85 | O64: 7.44 | R64: 0 | S64: 2404.78 | Y64: Actuals
A65: 37-0067 | B65: Hutchinson Body Sealing System | C65: Non-EGU | D65: 41 | E65: 0.054 | F65: 0 | G65: 0 | H65: 217 | I65: 42.3 | J65: 0 | K65: 0 | N65: 24.9 | O65: 16.5 | P65: 0 | R65: 282.9 | S65: 58.854 | Y65: Mixed
A66: 37-0076 | B66: Mundet Tennessee Incorporated | C66: Non-EGU | D66: 15.6 | F66: 1 | H66: 199 | J66: 7 | N66: 0 | P66: 0 | R66: =SUM(D66+F66+H66+J66+L66+N66+P66) -> 222.6 | S66: =SUM(E66,G66,I66,K66,M66,O66,Q66) -> 0 | Y66: Allowables
A67: 37-0080 | B67: BFI Waste Systems of Tennessee dba Carter Valley Landfill | C67: Non-EGU | E67: 14.62 | G67: 0.04 | I67: 6.62 | K67: 0.66 | Q67: 21.4 | R67: 0 | S67: 43.34 | Y67: Actuals
A68: 38-0039 | B68: Teknor Apex Tennessee Company | C68: Non-EGU | D68: 72.01 | E68: 4.76 | G68: 0.18 | H68: 216.3 | I68: 38.69 | K68: 15.33 | R68: 288.31 | S68: 58.96 | Y68: Mixed
A69: 38-0053 | B69: ANR Pipeline Company dba Brownsville Compressor Station | C69: Non-EGU | E69: 5.09 | G69: 0.3 | I69: 8.3 | K69: 110.8 | M69: 0.01 | R69: 0 | S69: 124.5 | Y69: Actuals
A70: 38-0068 | B70: Tennessee Valley Authority - Brownsville Combustion Turbine Plant | C70: EGU | E70: 10.9 | G70: 2.1 | I70: 16.3 | J70: 249 | R70: 249 | S70: 29.3 | Y70: Mixed
A71: 38-0069 | B71: Tennessee Valley Authority (TVA) - Lagoon Creek Combustion Turbine Plant (LCT) | C71: EGU | E71: 58.1 | G71: 9.2 | I71: 31.6 | K71: 282.9 | R71: 0 | S71: 381.8 | Y71: Actuals
A72: 39-0072 | B72: Leroy-Somer Americas | C72: Non-EGU | D72: 80.8 | F72: 13.1 | H72: 155 | J72: 63.5 | N72: 0 | P72: 0 | R72: 312.4 | S72: 0 | Y72: Allowables
A73: 40-0024 | B73: ANR Pipeline Company dba Cottage Grove Compressor Station | C73: Non-EGU | E73: 9.75 | G73: 0.08 | I73: 24.21 | K73: 254.14 | M73: 0.04 | R73: 0 | S73: 288.22 | Y73: Actuals
A74: 40-0033 | B74: Institutional Casework, Inc. | C74: Non-EGU | D74: 27.61 | F74: 0 | H74: 128.1 | J74: 0 | N74: 0 | P74: 0 | R74: 155.71 | S74: 0 | Y74: Allowables
A75: 40-0077 | B75: Tank Lining Of Paris, Inc. | C75: Non-EGU | D75: 34.6 | F75: 0 | H75: 189.6 | J75: 2.63 | N75: 0 | P75: 0 | R75: 226.83 | S75: 0 | Y75: Allowables
A76: 40-0083 | B76: Allegion, PLC, c/o Schlage Lock Company, LLC dba Republic Doors and Frames | C76: Non-EGU | D76: 27.41 | F76: 0 | H76: 203.1 | J76: 0 | N76: 0 | P76: 0 | R76: 230.51 | S76: 0 | Y76: Allowables
A77: 40-0102 | B77: PML Inc. | C77: Non-EGU | D77: 8.12 | E77: 0.04 | G77: 0.003 | I77: 16.56 | K77: 0.5 | R77: 8.12 | S77: 17.103 | Y77: Mixed
A78: 40-0107 | B78: Dana Sealing Products, LLC | C78: Non-EGU | E78: 0.002 | G78: 0.002 | I78: 28 | K78: 0.03 | M78: 1.1 | R78: 0 | S78: 29.134 | Y78: Actuals
A79: 41-0002 | B79: Tennessee Gas Pipeline Company, LLC - Compressor Station 860 | C79: Non-EGU | E79: 27.83 | G79: 0.33 | I79: 69.12 | K79: 1507.5 | M79: 0.11 | R79: 0 | S79: 1604.89 | Y79: Actuals
A80: 43-0003 | B80: Albemarle U S Inc | C80: Non-EGU | D80: 8.51 | F80: 0.01 | H80: 98.6 | J80: 3.53 | N80: 0 | P80: 0 | R80: 110.65 | S80: 0 | Y80: Allowables
A81: 43-0007 | B81: The Chemours Company FC, LLC | C81: Non-EGU | D81: 440.9 | E81: 7.34 | F81: 39.06 | G81: 30.17 | H81: 4.23 | I81: 74.43 | J81: 4.49 | K81: 72.66 | L81: 49.19 | M81: 1518.14 | R81: 537.87 | S81: 1702.74 | Y81: Mixed
A82: 43-0010 | B82: Hood Container Corporation | C82: Non-EGU | D82: 379.73 | F82: 576.4 | H82: 501.35 | J82: 863.9 | N82: 50.8 | P82: 1.5 | R82: 2373.68 | S82: 0 | Y82: Allowables
A83: 43-0011 | B83: Tennessee Valley Authority - Johnsonville Combustion Turbine Plant | C83: EGU | E83: 21 | G83: 3 | I83: 20 | K83: 245 | M83: 0.0086 | R83: 0 | S83: 289.0086 | Y83: Actuals
A84: 43-0021 | B84: Prince Specialty Products LLC | C84: Non-EGU | D84: 69.22 | F84: 160.27 | H84: 5.82 | J84: 192.41 | N84: 0 | P84: 0 | R84: 427.72 | S84: 0 | Y84: Allowables
A85: 45-0085 | B85: Ball Metalpack, LLC | C85: Non-EGU | D85: 9.95 | F85: 0.13 | H85: 249 | J85: 18.69 | N85: 0 | P85: 0 | R85: 277.77 | S85: 0 | Y85: Allowables
A86: 45-0101 | B86: Overman USA | C86: Non-EGU | D86: 44 | F86: 0 | H86: 233 | J86: 0 | N86: 0 | P86: 0 | R86: 277 | S86: 0 | Y86: Allowables
A87: 47-0018 | B87: University of Tennessee | C87: Non-EGU | E87: 5.21 | G87: 1.27 | I87: 9.67 | K87: 75.06 | R87: 0 | S87: 91.21 | Y87: Actuals
A88: 49-0068 | B88: Marvin Windows of Tennessee, Inc. | C88: Non-EGU | D88: 77.46 | F88: 0 | H88: 194.47 | J88: 0 | N88: 0 | P88: 0 | R88: 271.93 | S88: 0 | Y88: Allowables
A89: 50-0003 | B89: GT Refractory Solutions LLC | C89: Non-EGU | D89: 215 | F89: 522 | H89: 47 | J89: 27 | N89: 0 | P89: 0 | R89: 811 | S89: 0 | Y89: Allowables
A90: 50-0054 | B90: Graphic Packaging International, LLC | C90: Non-EGU | D90: 104.44 | I90: 21.73 | R90: 104.44 | S90: 21.73 | Y90: Mixed
A91: 51-0031 | B91: Oliver Fiberglass Products | C91: Non-EGU | E91: 6 | I91: 43.13 | R91: 0 | S91: 49.13 | Y91: Actuals
A92: 52-0002 | B92: Goodman Company, L.P. | C92: Non-EGU | D92: 51.9 | F92: 0 | H92: 231.1 | J92: 16.7 | N92: 0 | P92: 0 | R92: 299.7 | S92: 0 | Y92: Allowables
A93: 52-0085 | B93: Latham Pool Products, Inc. dba Viking Pools - TN | C93: Non-EGU | E93: 8.719 | I93: 43.73 | R93: 0 | S93: 52.449 | Y93: Actuals
A94: 53-0003 | B94: Viskase Companies Inc | C94: Non-EGU | D94: 11.46 | F94: 60.61 | H94: 1168.48 | J94: 41.44 | N94: 0 | P94: 285 | R94: 1566.99 | S94: 0 | Y94: Allowables
A95: 53-0081 | B95: Tate & Lyle Ingredients Americas LLC | C95: Non-EGU | D95: 267.3 | F95: 247 | H95: 413.4 | J95: 642.8 | N95: 0.5 | P95: 0 | R95: 1571 | S95: 0 | Y95: Allowables
A96: 53-0090 | B96: Hubbell Lenoir City, Inc. | C96: Non-EGU | D96: 63.75 | F96: 0 | H96: 224.53 | J96: 0 | N96: 0 | P96: 0 | R96: 288.28 | S96: 0 | Y96: Allowables
A97: 53-0093 | B97: Kimberly-Clark Corporation, Loudon Mill | C97: Non-EGU | D97: 242.25 | E97: 1.99 | F97: 181.64 | G97: 0.23 | H97: 207.1 | I97: 2.11 | J97: 93.31 | K97: 38.3 | R97: 724.3 | S97: 42.63 | Y97: Mixed
A98: 53-0098 | B98: Malibu Boats, LLC | C98: Non-EGU | D98: 69 | I98: 191 | R98: 69 | S98: 191 | Y98: Mixed
A99: 53-0110 | B99: Santek Waste Services, Inc. dba Loudon County (Matlock Bend) Landfill | C99: Non-EGU | I99: 11.44 | Q99: 5.09 | R99: 0 | S99: 16.53 | Y99: Actuals
A100: 54-0009 | B100: Evonik Corporation | C100: Non-EGU | D100: 310.6 | E100: 63.76 | F100: 9.2 | G100: 1.59 | H100: 6.2 | I100: 0.92 | J100: 83.2 | K100: 17 | R100: 409.2 | S100: 83.27 | Y100: Mixed
A101: 54-0012 | B101: Resolute FP US Inc. | C101: Non-EGU | D101: 681 | E101: 173.4 | F101: 1042 | G101: 6.63 | H101: 912 | I101: 24.37 | J101: 1172 | K101: 181.61 | L101: 245.2 | N101: 254.4 | P101: 64.5 | R101: 4371.1 | S101: 386.01 | Y101: Mixed
A102: 54-0132 | B102: Johns Manville, Inc. | C102: Non-EGU | D102: 128.3 | F102: 102.11 | H102: 13.2 | J102: 161 | N102: 4.65 | P102: 0 | R102: 409.26 | S102: 0 | Y102: Allowables
A103: 54-0167 | B103: Johns Manville Corporation | C103: Non-EGU | D103: 132.2 | F103: 8.8 | H103: 288.1 | J103: 132.46 | N103: 0 | P103: 0 | R103: 561.56 | S103: 0 | Y103: Allowables
A104: 54-0174 | B104: Waupaca Foundry, Inc. Plant 6 | C104: Non-EGU | D104: 297.24 | F104: 96.34 | H104: 369 | J104: 200.36 | N104: 1.4 | P104: 0 | R104: 964.34 | S104: 0 | Y104: Allowables
A105: 54-0176 | B105: Dynasty Spas, Inc. | C105: Non-EGU | E105: 0.04 | I105: 23.79 | R105: 0 | S105: 23.83 | Y105: Actuals
A106: 54-0188 | B106: Meadow Branch Landfill - Environmental Trust Company | C106: Non-EGU | E106: 71.29 | G106: 0.01 | I106: 4.8 | K106: 0.16 | M106: 2.59 | R106: 0 | S106: 78.85 | Y106: Actuals
A107: 56-0004 | B107: Columbia Gulf Transmission Co. Hartsville Compressor Station | C107: Non-EGU | E107: 1.29 | G107: 0.13 | I107: 2.15 | K107: 28.82 | M107: 0.15 | R107: 0 | S107: 32.54 | Y107: Actuals
A108: 57-0020 | B108: Armstrong Flooring, Inc. | C108: Non-EGU | E108: 3.01 | G108: 0.06 | I108: 7.26 | K108: 2.8 | R108: 0 | S108: 13.13 | Y108: Actuals
A109: 57-0024 | B109: Owens Corning Composite Materials, LLC | C109: Non-EGU | D109: 4.6 | E109: 106.62 | F109: 0.13 | G109: 106.56 | H109: 0.49 | I109: 125.67 | J109: 13.51 | K109: 84.62 | M109: 9.44 | R109: 18.73 | S109: 432.91 | Y109: Mixed
A110: 57-0035 | B110: Pringles Manufacturing Company | C110: Non-EGU | D110: 181.43 | F110: 6.82 | H110: 169.8 | J110: 211.34 | N110: 0 | P110: 0 | R110: 569.39 | S110: 0 | Y110: Allowables
A111: 57-0189 | B111: Gerdau Ameristeel US Inc. | C111: Non-EGU | D111: 8.3 | E111: 60.52 | F111: 0.4 | G111: 19.13 | H111: 1.1 | I111: 91 | J111: 31 | K111: 159.85 | O111: 0.16 | R111: 40.8 | S111: 330.66 | Y111: Mixed
A112: 57-0221 | B112: Foam Fabricators, Inc. | C112: Non-EGU | E112: 0.17 | G112: 0.01 | I112: 98.4 | K112: 2.17 | R112: 0 | S112: 100.75 | Y112: Actuals
A113: 57-0254 | B113: Sonoco Products Company | C113: Non-EGU | I113: 173.88 | R113: 0 | S113: 173.88 | Y113: Actuals
A114: 57-0259 | B114: Madison County Development, LLC dba Jackson Madison County Landfill | C114: Non-EGU | E114: =9.29+2 -> 11.29 | G114: =18.68+2 -> 20.68 | I114: =1.07+2 -> 3.07 | K114: =7.78+2 -> 9.78 | R114: 0 | S114: 44.82 | Y114: Actuals
A115: 57-0286 | B115: Missouri Smelting Technology, Inc. | C115: Non-EGU | D115: 72.6 | F115: 1.5 | H115: 45.3 | J115: 66.4 | N115: 49.8 | P115: 0 | R115: 235.6 | S115: 0 | Y115: Allowables
A116: 58-0011 | B116: Lodge Manufacturing Company | C116: Non-EGU | D116: 150.98 | F116: 0.6 | H116: 204 | J116: 1.2 | N116: 2.4 | P116: 0 | R116: 359.18 | S116: 0 | Y116: Allowables
A117: 59-0059 | B117: East Tennessee Natural Gas, LLC dba Lewisburg Compressor Station 3206 | C117: Non-EGU | D117: 1 | F117: 1.93 | H117: 20.5 | J117: 73.9 | N117: 0 | P117: 0 | R117: 97.33 | S117: 0 | Y117: Allowables
A118: 59-0061 | B118: Calsonic Kansei North America, Inc. | C118: Non-EGU | E118: 0.221 | I118: 23.767 | R118: 0 | S118: 23.988 | Y118: Actuals
A119: 59-0066 | B119: Trison Coatings Inc | C119: Non-EGU | D119: 11.3 | I119: 0.69 | R119: 11.3 | S119: 0.69 | Y119: Mixed
A120: 59-0086 | B120: Cedar Ridge Landfill, Inc. | C120: Non-EGU | E120: 1.11 | G120: 1.32 | I120: 5.96 | K120: 2.61 | R120: 0 | S120: 11 | Y120: Actuals
A121: 59-0133 | B121: Comfort Research, LLC | C121: Non-EGU | D121: 0 | F121: 0 | H121: 225 | J121: 0 | N121: 0 | P121: 0 | R121: 225 | S121: 0 | Y121: Allowables
A122: 60-0011 | B122: Mersen USA GSTN Corporation | C122: Non-EGU | D122: 696.5 | F122: 125.2 | H122: 114.8 | J122: 56 | N122: 0 | P122: 10 | R122: 1002.5 | S122: 0 | Y122: Allowables
A123: 60-0095 | B123: Columbia Gulf Transmission Company Hamps | C123: Non-EGU | E123: 6.05 | G123: 0.21 | I123: 12.39 | K123: 357.71 | M123: 5.56 | R123: 0 | S123: 381.92 | Y123: Actuals
A124: 60-0132 | B124: General Motors LLC Spring Hill Manufacturing | C124: Non-EGU | E124: 21.55 | G124: 0.2 | I124: 441.3 | K124: 33.29 | R124: 0 | S124: 496.34 | Y124: Actuals
A125: 60-0161 | B125: Swarco Industries | C125: Non-EGU | D125: 0 | F125: 0 | H125: 169 | J125: 0 | N125: 0 | P125: 0 | R125: 169 | S125: 0 | Y125: Allowables
A126: 60-0184 | B126: Sonoco Protective Solutions, Inc. | C126: Non-EGU | E126: 0.89 | G126: 0.09 | I126: 13.88 | K126: 7.19 | R126: 0 | S126: 22.05 | Y126: Actuals
A127: 60-0200 | B127: Sekisui Plastics USA Inc | C127: Non-EGU | D127: 0 | F127: 0 | H127: 307 | J127: 0 | N127: 0 | P127: 0 | R127: 307 | S127: 0 | Y127: Allowables
A128: 62-0089 | B128: Sea Ray Inc Tellico Facility | C128: Non-EGU | E128: 113 | M128: 8.5 | O128: 142.6 | R128: 0 | S128: 264.1 | Y128: Actuals
A129: 62-0090 | B129: Havco Wood Products, LLC | C129: Non-EGU | D129: 247 | F129: 1 | H129: 97 | J129: 156.1 | N129: 7.5 | P129: 0 | R129: 508.6 | S129: 0 | Y129: Allowables
A130: 62-0096 | B130: Yamaha Jet Boat Manufacturing USA, Inc. | C130: Non-EGU | E130: 29.1 | I130: 259.2 | M130: 8.7 | O130: 179.1 | R130: =SUM(D130+F130+H130+J130+L130+N130+P130) -> 0 | S130: =SUM(E130,G130,I130,K130,M130,O130,Q130) -> 476.1 | Y130: Actuals
A131: 62-0102 | B131: Bryant Boats, LLC | C131: Non-EGU | D131: 36 | F131: 0 | H131: 100 | J131: 0 | N131: 0 | P131: 0 | R131: 136 | S131: 0 | Y131: Allowables
A132: 62-0107 | B132: MasterCraft Boat Company, Inc. | C132: Non-EGU | E132: 26.3 | I132: 185.5 | R132: 0 | S132: 211.8 | Y132: Actuals
A133: 62-0125 | B133: Mastermelt America, LLC | C133: Non-EGU | D133: 101.12 | F133: 99.9 | H133: 61.3 | J133: 8.99 | N133: 0.32 | P133: 0 | R133: 271.63 | S133: 0 | Y133: Allowables
A134: 62-0166 | B134: MacLean Power, LLC dba MacLean Highline | C134: Non-EGU | D134: 6 | F134: 0 | H134: 0.3 | J134: 0 | N134: 98.8 | P134: 0 | R134: 105.1 | S134: 0 | Y134: Allowables
A135: 63-0092 | B135: Nyrstar Clarksville Inc. | C135: Non-EGU | E135: 73.5 | G135: 306.3 | I135: 0.16 | K135: 10.6 | M135: 0.05 | Q135: 2.65 | R135: 0 | S135: 393.26 | Y135: Actuals
A136: 63-0097 | B136: HQ, 101st Airborne Division and Fort Campbell | C136: Non-EGU | E136: 0.611 | G136: 0.167 | I136: 0.262 | K136: 5.84 | Q136: 1.89 | R136: 0 | S136: 8.77 | Y136: Actuals
A137: 63-0123 | B137: Precision Printing and Packaging, Inc. dba Multi-Color Corporation | C137: Non-EGU | D137: 9.4 | F137: 17.98 | H137: 366.59 | J137: 23.99 | N137: 0 | P137: 0 | R137: 417.96 | S137: 0 | Y137: Allowables
A138: 63-0129 | B138: Bi-County Solid Waste Management System | C138: Non-EGU | I138: 6.8 | R138: 0 | S138: 6.8 | Y138: Actuals
A139: 63-0135 | B139: Florim USA, Inc. | C139: Non-EGU | D139: 205.5 | F139: 153.98 | H139: 97.5 | J139: 89.5 | N139: 7.38 | P139: 0 | R139: 553.86 | S139: 0 | Y139: Allowables
A140: 63-0278 | B140: Bi-County Gas Producers, LLC | C140: Non-EGU | D140: 42.3 | F140: 0.08 | H140: 40.32 | J140: 80.64 | N140: 0 | P140: 0 | R140: 163.34 | S140: 0 | Y140: Allowables
A141: 63-0320 | B141: Hankook Tire Manufacturing Tennessee, LP dba Hankook Tire Tennessee Plant | C141: Non-EGU | D141: 92.63 | F141: 34.28 | H141: 648.47 | J141: 34.26 | N141: 0 | P141: 0 | R141: 809.64 | S141: 0 | Y141: Allowables
A142: 63-0339 | B142: Foxman LLC dba Foxman â€“ Clarksville Data Center | C142: Non-EGU | D142: 30.99 | F142: 2.95 | H142: 27.5 | J142: 249 | N142: 0 | P142: 0 | R142: 310.44 | S142: 0 | Y142: Allowables
A143: 63-0377 | B143: LG Electronics USA, Inc. | C143: Non-EGU | D143: 17.31 | F143: 0.14 | H143: 208.9 | J143: 6.44 | N143: 0 | P143: 0 | R143: 232.79 | S143: 0 | Y143: Allowables
A144: 64-0001 | B144: Jack Daniel Distillery, Lem Motlow Proprietor, Inc. | C144: Non-EGU | D144: 63.166 | E144: 4.756 | F144: 2.04 | G144: 2.678 | H144: 8.6 | I144: 883.72 | J144: 40.94 | K144: 68.979 | R144: 114.746 | S144: 960.133 | Y144: Mixed
A145: 64-0013 | B145: Jack Daniel Distillery, Lem Motlow Proprietor | C145: Non-EGU | D145: 7.04 | F145: 226 | H145: 4000 | J145: 76.3 | N145: 0 | P145: 0 | R145: 4309.34 | S145: 0 | Y145: Allowables
A146: 65-0044 | B146: Tennessee Coatings, Inc dba Ellison Custom Coatings | C146: Non-EGU | D146: 37.93 | F146: 0 | H146: 50 | J146: 0 | N146: 0 | P146: 0 | R146: 87.93 | S146: 0 | Y146: Allowables
A147: 65-0049 | B147: Heraeus Metal Processing, LLC | C147: Non-EGU | D147: 60.92 | F147: 19.38 | H147: 15.26 | J147: 30.86 | N147: 0 | P147: 0 | R147: 126.42 | S147: 0 | Y147: Allowables
A148: 66-0101 | B148: Texas Gas Transmission, LLC dba Kenton Compressor Station | C148: Non-EGU | E148: 0.06 | G148: 0.01 | I148: 3 | K148: 85.9 | R148: 0 | S148: 88.97 | Y148: Actuals
A149: 66-0113 | B149: Northwest Tennessee Disposal Corporation dba Northwest Tennessee Landfill | C149: Non-EGU | E149: =11.35+2 -> 13.35 | G149: =17.64+2 -> 19.64 | I149: =3.06+2 -> 5.06 | K149: =7.34+2 -> 9.34 | R149: 0 | S149: 47.39 | Y149: Actuals
A150: 66-0123 | B150: Green Plains Obion LLC | C150: Non-EGU | D150: 53.46 | F150: 97.19 | H150: 118.56 | J150: 151.95 | N150: 0 | P150: 0 | R150: 421.16 | S150: 0 | Y150: Allowables
A151: 66-0185 | B151: ECM of Ridgely, LLC | C151: Non-EGU | D151: 0 | F151: 0.49 | H151: 4.6 | J151: 0 | N151: 4.41 | P151: 0 | R151: 9.5 | S151: 0 | Y151: Allowables
A152: 67-0054 | B152: ABC - Inoac Exterior Systems LLC | C152: Non-EGU | D152: 81.9 | F152: 2.19 | H152: 245.2 | J152: 11 | N152: 0 | P152: 0 | R152: 340.29 | S152: 0 | Y152: Allowables
A153: 68-0001 | B153: Tennessee Gas Pipeline Company LLC - Compressor Station 79 | C153: Non-EGU | E153: 0.037 | G153: 0.0032 | I153: 0.29 | K153: 3.12 | M153: 7e-06 | R153: 0 | S153: 3.450207 | Y153: Actuals
A154: 68-0034 | B154: East Tennessee Natural Gas, LLC - Lobelville Compressor Station 3201 | C154: Non-EGU | D154: 1.15 | F154: 9.35 | H154: 2.75 | J154: 70.66 | N154: 0 | P154: 0 | R154: 83.91 | S154: 0 | Y154: Allowables
A155: 71-0020 | B155: Cummins Filtration | C155: Non-EGU | D155: 13.71 | F155: 4.38 | H155: 159.2 | J155: 45.85 | N155: 0 | P155: 0 | R155: 223.14 | S155: 0 | Y155: Allowables
A156: 71-0035 | B156: Tennessee Technological University | C156: Non-EGU | E156: 0.9 | G156: 0.4 | I156: 0.5 | K156: 6.4 | R156: 0 | S156: 8.2 | Y156: Actuals
A157: 71-0148 | B157: East Tennessee Natural Gas, LLC - Monterey Compressor Station 3107 | C157: Non-EGU | I157: 4.23 | K157: 88.8 | R157: 0 | S157: 93.03 | Y157: Actuals
A158: 72-0049 | B158: La-Z-Boy Tennessee | C158: Non-EGU | D158: 233 | F158: 8.9 | H158: 22.8 | I158: 38.061 | J158: 95.7 | R158: 360.4 | S158: 38.061 | Y158: Mixed
A159: 72-0107 | B159: Huber Engineered Woods, LLC | C159: Non-EGU | D159: 244.8 | F159: 30.7 | H159: 191.27 | J159: 201 | N159: 9 | P159: 0 | R159: 676.77 | S159: 0 | Y159: Allowables
A160: 72-0109 | B160: Santek Waste Services, LLC dba Rhea County Landfill | C160: Non-EGU | I160: 15.05 | Q160: 13.39 | R160: 0 | S160: 28.44 | Y160: Actuals
A161: 72-0116 | B161: General Shale Brick - Plant 42 | C161: Non-EGU | E161: 6.18 | G161: 67.62 | I161: 1.91 | K161: 40.67 | O161: 0.15 | R161: 0 | S161: 116.53 | Y161: Actuals
A162: 73-0013 | B162: Tennessee Valley Authority (TVA) - Kingston Fossil Plant | C162: EGU | E162: 182 | G162: 1327 | I162: 51.5 | K162: 1158 | M162: 23.8 | R162: 0 | S162: 2742.3 | Y162: Actuals
A163: 73-0107 | B163: American Zinc Recycling Corp | C163: Non-EGU | D163: 195.08 | F163: 76.89 | H163: 163.67 | J163: 190.63 | N163: 0 | P163: 0 | R163: 626.27 | S163: 0 | Y163: Allowables
A164: 73-0112 | B164: US Department of Energy, Oak Ridge National Laboratory (Office of Science) | C164: Non-EGU | D164: 90 | E164: 1 | I164: 1 | K164: 20 | R164: 90 | S164: 22 | Y164: Mixed
A165: 73-0125 | B165: Teijin Carbon America, Inc. | C165: Non-EGU | D165: 44.7 | F165: 5.42 | H165: 118.9 | J165: 107.3 | N165: 13.2 | P165: 0 | R165: 289.52 | S165: 0 | Y165: Allowables
A166: 73-0137 | B166: Diversified Scientific Services, Inc | C166: Non-EGU | D166: 18.02 | F166: 21.9 | H166: 15 | J166: 39 | N166: 12.76 | P166: 0 | R166: 106.68 | S166: 0 | Y166: Allowables
A167: 73-0182 | B167: Isotek Systems, LLC dba US DOE, Oak Ridge National Laboratory - Building 2026 | C167: Non-EGU | D167: 45.08 | F167: 0 | H167: 0.1 | J167: 1.42 | N167: 0 | P167: 0 | R167: 46.6 | S167: 0 | Y167: Allowables
A168: 74-0102 | B168: Drew Foam Companies Inc. | C168: Non-EGU | D168: 0 | F168: 0 | H168: 240 | J168: 0 | N168: 0 | P168: 0 | R168: 240 | S168: 0 | Y168: Allowables
A169: 75-0057 | B169: Bridgestone Americas Tire Operations, LLC - LaVergne | C169: Non-EGU | D169: 60.56 | F169: 0.7 | H169: 467.6 | J169: 112.89 | N169: 0 | P169: 0 | R169: 641.75 | S169: 0 | Y169: Allowables
A170: 75-0155 | B170: Nissan North America, Inc. - Smyrna | C170: Non-EGU | D170: 96.3 | E170: 5.73 | H170: 6.1 | I170: 1663.56 | K170: 45.81 | R170: 102.4 | S170: 1715.1 | Y170: Mixed
A171: 75-0381 | B171: BFI Waste Systems of Tennessee, LLC dba Middle Point Landfill | C171: Non-EGU | E171: 0.06 | I171: 0.84 | M171: 0.48 | R171: 0 | S171: 1.38 | Y171: Actuals
A172: 76-0071 | B172: Volunteer Regional Landfill Scott Solid | C172: Non-EGU | E172: 132.19 | G172: 0.56 | I172: 4.67 | K172: 2.87 | O172: 2.64 | R172: 0 | S172: 142.93 | Y172: Actuals
A173: 78-0028 | B173: Johnson Matthey, Inc. | C173: Non-EGU | D173: 71.56 | F173: 1.43 | H173: 0.79 | J173: 6.37 | N173: 0 | P173: 0 | R173: 80.15 | S173: 0 | Y173: Allowables
A174: 78-0086 | B174: East Tennessee Natural Gas, LLC - Boyd's Creek Compressor Station (Station 3302) | C174: Non-EGU | D174: 3.4 | F174: 2.6 | H174: 6.9 | J174: 108.7 | N174: 0 | P174: 0 | R174: 121.6 | S174: 0 | Y174: Allowables
A175: 80-0009 | B175: Bon L Manufacturing Company | C175: Non-EGU | E175: 15.97 | G175: 0.16 | I175: 13.59 | K175: 18.53 | O175: 2.97 | R175: 0 | S175: 51.22 | Y175: Actuals
A176: 81-0011 | B176: Tennessee Valley Authority - Cumberland Fossil Plant | C176: EGU | E176: 541 | F176: 4000 | I176: 135 | K176: 4000 | M176: 218 | R176: 4000 | S176: 4894 | Y176: Mixed
A177: 81-0030 | B177: Georgia-Pacific Gypsum LLC | C177: Non-EGU | D177: 145.76 | F177: 1.4 | H177: 155.14 | J177: 112.24 | N177: 0 | P177: 0 | R177: 414.54 | S177: 0 | Y177: Allowables
A178: 82-0003 | B178: Eastman Chemical Company | C178: Non-EGU | D178: 452 | E178: 169 | F178: 4000 | H178: 4000 | J178: 4000 | L178: 390 | M178: 1 | N178: 797 | O178: 107 | R178: 13639 | S178: 277 | Y178: Mixed
A179: 82-0007 | B179: Seaman Corporation | C179: Non-EGU | E179: 0.22 | G179: 0.02 | I179: 44.09 | K179: 2.94 | M179: 0.27 | R179: 0 | S179: 47.54 | Y179: Actuals
A180: 82-0022 | B180: Domtar Paper Company, LLC - Kingsport Mill | C180: Non-EGU | D180: 154.61 | E180: 16.89 | F180: 27.26 | G180: 31.39 | H180: 71.75 | I180: 35.7 | J180: 706.47 | K180: 188.57 | N180: 1.44 | O180: 0.02 | P180: 9.84 | Q180: 4.15 | R180: 971.37 | S180: 276.72 | Y180: Mixed
A181: 82-0052 | B181: Gregory Pharmaceutical Holdings, LLC dba UPM Pharmaceuticals | C181: Non-EGU | D181: 40.87 | F181: 5.05 | H181: 17.13 | J181: 14.98 | N181: 22.68 | P181: 0 | R181: 100.71 | S181: 0 | Y181: Allowables
A182: 82-0110 | B182: East Tennessee Natural Gas Station 3308 | C182: Non-EGU | E182: 1.29 | G182: 0.12 | I182: 0.47 | K182: 22.95 | R182: 0 | S182: 24.83 | Y182: Actuals
A183: 82-0153 | B183: Microporous, LLC | C183: Non-EGU | D183: 49 | F183: 1.28 | H183: 1.97 | J183: 18.38 | N183: 160 | P183: 0 | R183: 230.63 | S183: 0 | Y183: Allowables
A184: 82-0481 | B184: EcoSafe Systems, LLC dba Eco-Safe Landfill | C184: Non-EGU | E184: 4.47 | G184: 5.08 | I184: 9.38 | K184: 11.62 | R184: 0 | S184: 30.55 | Y184: Actuals
A185: 82-0510 | B185: Primester | C185: Non-EGU | D185: 7.1 | F185: 1.1 | H185: 43.15 | J185: 0 | N185: 0 | P185: 0 | R185: 51.35 | S185: 0 | Y185: Allowables
A186: 83-0008 | B186: Tennessee Gas Pipeline Company, LLC - Compressor Station 87 | C186: Non-EGU | E186: 27.04 | G186: 0.48 | I186: 95.37 | K186: 1083.077 | M186: 0.11 | R186: 0 | S186: 1206.077 | Y186: Actuals
A187: 83-0014 | B187: Midwestern Gas Transmission Company dba MGT - Portland Compressor Station (2101) | C187: Non-EGU | D187: 8.2 | F187: 2.78 | I187: 7.34 | K187: 191.95 | R187: 10.98 | S187: 199.29 | Y187: Mixed
A188: 83-0025 | B188: Tennessee Valley Authority - Gallatin Fossil Plant | C188: EGU | E188: 183 | G188: 1828 | I188: 99 | K188: 1304 | M188: 10.9 | P188: 15.1 | R188: 15.1 | S188: 3424.9 | Y188: Mixed
A189: 83-0129 | B189: Hoeganaes Corporation | C189: Non-EGU | D189: 155.5 | F189: 106.9 | H189: 46.8 | J189: 272.5 | N189: 8.5 | P189: 0 | R189: 590.2 | S189: 0 | Y189: Allowables
A190: 84-0067 | B190: Texas Gas Transmission, LLC | C190: Non-EGU | E190: 28.65 | G190: 0.01 | I190: 2 | K190: 71 | R190: 0 | S190: 101.66 | Y190: Actuals
A191: 85-0027 | B191: East Tennessee Natural Gas, LLC dba Dixon Springs Compressor Station (Station 3104) | C191: Non-EGU | I191: 1.32 | K191: 64.62 | R191: 0 | S191: 65.94 | Y191: Actuals
A192: 87-0028 | B192: Carmeuse Lime & Stone, O-N Minerals (Luttrell) Company | C192: Non-EGU | D192: 137.3 | F192: 746.8 | H192: 2 | J192: 452.6 | N192: 0 | P192: 0 | R192: 1338.7 | S192: 0 | Y192: Allowables
A193: 89-0077 | B193: Bridgestone Americas Tire Operations, LLC dba Warren Plant | C193: Non-EGU | D193: 160.8 | E193: 1.63 | G193: 0.13 | H193: 402 | I193: 1.18 | K193: 21.4 | M193: 3.56 | R193: 562.8 | S193: 27.9 | Y193: Mixed
A194: 90-0039 | B194: Mountain Home Energy Center | C194: Non-EGU | E194: 8.36 | G194: 0.3 | I194: 37.64 | K194: 54.71 | R194: =SUM(D194+F194+H194+J194+L194+N194+P194) -> 0 | S194: =SUM(E194,G194,I194,K194,M194,O194,Q194) -> 101.01 | Y194: Actuals
A195: 90-0232 | B195: Cantech Industries, Inc. | C195: Non-EGU | D195: 4.95 | F195: 0 | H195: 147 | J195: 0 | N195: 0 | P195: 0 | R195: 151.95 | S195: 0 | Y195: Allowables
A196: 90-0246 | B196: Iris Glen Environmental Center | C196: Non-EGU | H196: 14.01 | R196: 14.01 | S196: 0 | Y196: Allowables
A197: 90-0405 | B197: LPI, Inc. | C197: Non-EGU | D197: 71.1 | F197: 0 | H197: 99.5 | J197: 0 | N197: 0 | P197: 0 | R197: 170.6 | S197: 0 | Y197: Allowables
A198: 91-0001 | B198: Tennessee Gas Pipeline Company, LLC - Compressor Station 555 | C198: Non-EGU | E198: 6.624 | G198: 0.17 | I198: 62.77 | K198: 335.14 | M198: 0.021 | R198: 0 | S198: 404.725 | Y198: Actuals
A199: 91-0075 | B199: Praxis Companies, LLC | C199: Non-EGU | D199: 68 | F199: 0 | H199: 61.2 | J199: 0 | N199: 0 | P199: 0 | R199: 129.2 | S199: 0 | Y199: Allowables
A200: 92-0020 | B200: Kentucky-Tennessee Clay Company | C200: Non-EGU | E200: 3.7041 | G200: 0.03 | I200: 0.57 | K200: 6.342 | R200: 0 | S200: 10.6461 | Y200: Actuals
... 7 more rows
